Workbook

Sheet Worksheet
A1: 1 | C1: Yellow | D1: Orange | E1: Blue | F1: Cyan | G1: White | H1: Red | I1: Black | J1: Pink | K1: Purple | L1: Green | O1: Yellow | P1: Orange | Q1: Blue | R1: Cyan | S1: White | T1: Red | U1: Black | V1: Pink | W1: Purple | X1: Green
A2: Yellow | C2: =IF($A2=C$1,$A3,"") -> Orange | D2: =IF($A2=D$1,$A3,"") ->  | E2: =IF($A2=E$1,$A3,"") ->  | F2: =IF($A2=F$1,$A3,"") ->  | G2: =IF($A2=G$1,$A3,"") ->  | H2: =IF($A2=H$1,$A3,"") ->  | I2: =IF($A2=I$1,$A3,"") ->  | J2: =IF($A2=J$1,$A3,"") ->  | K2: =IF($A2=K$1,$A3,"") ->  | L2: =IF($A2=L$1,$A3,"") ->  | N2: Yellow | O2: =COUNTIF(C:C,$N2) -> 5 | P2: =COUNTIF(D:D,$N2) -> 7 | Q2: =COUNTIF(E:E,$N2) -> 5 | R2: =COUNTIF(F:F,$N2) -> 6 | S2: =COUNTIF(G:G,$N2) -> 3 | T2: =COUNTIF(H:H,$N2) -> 6 | U2: =COUNTIF(I:I,$N2) -> 7 | V2: =COUNTIF(J:J,$N2) -> 3 | W2: =COUNTIF(K:K,$N2) -> 7 | X2: =COUNTIF(L:L,$N2) -> 7 | Z2: Yellow | AA2: =COUNTIF(A:A,Z2) -> 56
A3: Orange | C3: =IF($A3=C$1,$A4,"") ->  | D3: =IF($A3=D$1,$A4,"") -> Orange | E3: =IF($A3=E$1,$A4,"") ->  | F3: =IF($A3=F$1,$A4,"") ->  | G3: =IF($A3=G$1,$A4,"") ->  | H3: =IF($A3=H$1,$A4,"") ->  | I3: =IF($A3=I$1,$A4,"") ->  | J3: =IF($A3=J$1,$A4,"") ->  | K3: =IF($A3=K$1,$A4,"") ->  | L3: =IF($A3=L$1,$A4,"") ->  | N3: Orange | O3: =COUNTIF(C:C,$N3) -> 7 | P3: =COUNTIF(D:D,$N3) -> 11 | Q3: =COUNTIF(E:E,$N3) -> 4 | R3: =COUNTIF(F:F,$N3) -> 9 | S3: =COUNTIF(G:G,$N3) -> 5 | T3: =COUNTIF(H:H,$N3) -> 4 | U3: =COUNTIF(I:I,$N3) -> 11 | V3: =COUNTIF(J:J,$N3) -> 8 | W3: =COUNTIF(K:K,$N3) -> 6 | X3: =COUNTIF(L:L,$N3) -> 5 | Z3: Orange | AA3: =COUNTIF(A:A,Z3) -> 69
A4: Orange | C4: =IF($A4=C$1,$A5,"") ->  | D4: =IF($A4=D$1,$A5,"") -> Orange | E4: =IF($A4=E$1,$A5,"") ->  | F4: =IF($A4=F$1,$A5,"") ->  | G4: =IF($A4=G$1,$A5,"") ->  | H4: =IF($A4=H$1,$A5,"") ->  | I4: =IF($A4=I$1,$A5,"") ->  | J4: =IF($A4=J$1,$A5,"") ->  | K4: =IF($A4=K$1,$A5,"") ->  | L4: =IF($A4=L$1,$A5,"") ->  | N4: Blue | O4: =COUNTIF(C:C,$N4) -> 4 | P4: =COUNTIF(D:D,$N4) -> 5 | Q4: =COUNTIF(E:E,$N4) -> 9 | R4: =COUNTIF(F:F,$N4) -> 11 | S4: =COUNTIF(G:G,$N4) -> 9 | T4: =COUNTIF(H:H,$N4) -> 9 | U4: =COUNTIF(I:I,$N4) -> 7 | V4: =COUNTIF(J:J,$N4) -> 7 | W4: =COUNTIF(K:K,$N4) -> 7 | X4: =COUNTIF(L:L,$N4) -> 8 | Z4: Blue | AA4: =COUNTIF(A:A,Z4) -> 75
A5: Orange | C5: =IF($A5=C$1,$A6,"") ->  | D5: =IF($A5=D$1,$A6,"") -> Blue | E5: =IF($A5=E$1,$A6,"") ->  | F5: =IF($A5=F$1,$A6,"") ->  | G5: =IF($A5=G$1,$A6,"") ->  | H5: =IF($A5=H$1,$A6,"") ->  | I5: =IF($A5=I$1,$A6,"") ->  | J5: =IF($A5=J$1,$A6,"") ->  | K5: =IF($A5=K$1,$A6,"") ->  | L5: =IF($A5=L$1,$A6,"") ->  | N5: Cyan | O5: =COUNTIF(C:C,$N5) -> 8 | P5: =COUNTIF(D:D,$N5) -> 5 | Q5: =COUNTIF(E:E,$N5) -> 9 | R5: =COUNTIF(F:F,$N5) -> 9 | S5: =COUNTIF(G:G,$N5) -> 8 | T5: =COUNTIF(H:H,$N5) -> 11 | U5: =COUNTIF(I:I,$N5) -> 4 | V5: =COUNTIF(J:J,$N5) -> 3 | W5: =COUNTIF(K:K,$N5) -> 8 | X5: =COUNTIF(L:L,$N5) -> 9 | Z5: Cyan | AA5: =COUNTIF(A:A,Z5) -> 73
A6: Blue | C6: =IF($A6=C$1,$A7,"") ->  | D6: =IF($A6=D$1,$A7,"") ->  | E6: =IF($A6=E$1,$A7,"") -> Red | F6: =IF($A6=F$1,$A7,"") ->  | G6: =IF($A6=G$1,$A7,"") ->  | H6: =IF($A6=H$1,$A7,"") ->  | I6: =IF($A6=I$1,$A7,"") ->  | J6: =IF($A6=J$1,$A7,"") ->  | K6: =IF($A6=K$1,$A7,"") ->  | L6: =IF($A6=L$1,$A7,"") ->  | N6: White | O6: =COUNTIF(C:C,$N6) -> 1 | P6: =COUNTIF(D:D,$N6) -> 5 | Q6: =COUNTIF(E:E,$N6) -> 6 | R6: =COUNTIF(F:F,$N6) -> 9 | S6: =COUNTIF(G:G,$N6) -> 4 | T6: =COUNTIF(H:H,$N6) -> 4 | U6: =COUNTIF(I:I,$N6) -> 12 | V6: =COUNTIF(J:J,$N6) -> 7 | W6: =COUNTIF(K:K,$N6) -> 7 | X6: =COUNTIF(L:L,$N6) -> 4 | Z6: White | AA6: =COUNTIF(A:A,Z6) -> 58
A7: Red | C7: =IF($A7=C$1,$A8,"") ->  | D7: =IF($A7=D$1,$A8,"") ->  | E7: =IF($A7=E$1,$A8,"") ->  | F7: =IF($A7=F$1,$A8,"") ->  | G7: =IF($A7=G$1,$A8,"") ->  | H7: =IF($A7=H$1,$A8,"") -> Red | I7: =IF($A7=I$1,$A8,"") ->  | J7: =IF($A7=J$1,$A8,"") ->  | K7: =IF($A7=K$1,$A8,"") ->  | L7: =IF($A7=L$1,$A8,"") ->  | N7: Red | O7: =COUNTIF(C:C,$N7) -> 3 | P7: =COUNTIF(D:D,$N7) -> 10 | Q7: =COUNTIF(E:E,$N7) -> 12 | R7: =COUNTIF(F:F,$N7) -> 3 | S7: =COUNTIF(G:G,$N7) -> 2 | T7: =COUNTIF(H:H,$N7) -> 11 | U7: =COUNTIF(I:I,$N7) -> 13 | V7: =COUNTIF(J:J,$N7) -> 9 | W7: =COUNTIF(K:K,$N7) -> 8 | X7: =COUNTIF(L:L,$N7) -> 9 | Z7: Red | AA7: =COUNTIF(A:A,Z7) -> 79
A8: Red | C8: =IF($A8=C$1,$A9,"") ->  | D8: =IF($A8=D$1,$A9,"") ->  | E8: =IF($A8=E$1,$A9,"") ->  | F8: =IF($A8=F$1,$A9,"") ->  | G8: =IF($A8=G$1,$A9,"") ->  | H8: =IF($A8=H$1,$A9,"") -> Red | I8: =IF($A8=I$1,$A9,"") ->  | J8: =IF($A8=J$1,$A9,"") ->  | K8: =IF($A8=K$1,$A9,"") ->  | L8: =IF($A8=L$1,$A9,"") ->  | N8: Black | O8: =COUNTIF(C:C,$N8) -> 9 | P8: =COUNTIF(D:D,$N8) -> 6 | Q8: =COUNTIF(E:E,$N8) -> 10 | R8: =COUNTIF(F:F,$N8) -> 7 | S8: =COUNTIF(G:G,$N8) -> 10 | T8: =COUNTIF(H:H,$N8) -> 10 | U8: =COUNTIF(I:I,$N8) -> 6 | V8: =COUNTIF(J:J,$N8) -> 6 | W8: =COUNTIF(K:K,$N8) -> 8 | X8: =COUNTIF(L:L,$N8) -> 7 | Z8: Black | AA8: =COUNTIF(A:A,Z8) -> 79
A9: Red | C9: =IF($A9=C$1,$A10,"") ->  | D9: =IF($A9=D$1,$A10,"") ->  | E9: =IF($A9=E$1,$A10,"") ->  | F9: =IF($A9=F$1,$A10,"") ->  | G9: =IF($A9=G$1,$A10,"") ->  | H9: =IF($A9=H$1,$A10,"") -> White | I9: =IF($A9=I$1,$A10,"") ->  | J9: =IF($A9=J$1,$A10,"") ->  | K9: =IF($A9=K$1,$A10,"") ->  | L9: =IF($A9=L$1,$A10,"") ->  | N9: Pink | O9: =COUNTIF(C:C,$N9) -> 11 | P9: =COUNTIF(D:D,$N9) -> 9 | Q9: =COUNTIF(E:E,$N9) -> 6 | R9: =COUNTIF(F:F,$N9) -> 4 | S9: =COUNTIF(G:G,$N9) -> 6 | T9: =COUNTIF(H:H,$N9) -> 8 | U9: =COUNTIF(I:I,$N9) -> 5 | V9: =COUNTIF(J:J,$N9) -> 5 | W9: =COUNTIF(K:K,$N9) -> 10 | X9: =COUNTIF(L:L,$N9) -> 5 | Z9: Pink | AA9: =COUNTIF(A:A,Z9) -> 68
A10: White | C10: =IF($A10=C$1,$A11,"") ->  | D10: =IF($A10=D$1,$A11,"") ->  | E10: =IF($A10=E$1,$A11,"") ->  | F10: =IF($A10=F$1,$A11,"") ->  | G10: =IF($A10=G$1,$A11,"") -> Blue | H10: =IF($A10=H$1,$A11,"") ->  | I10: =IF($A10=I$1,$A11,"") ->  | J10: =IF($A10=J$1,$A11,"") ->  | K10: =IF($A10=K$1,$A11,"") ->  | L10: =IF($A10=L$1,$A11,"") ->  | N10: Purple | O10: =COUNTIF(C:C,$N10) -> 7 | P10: =COUNTIF(D:D,$N10) -> 6 | Q10: =COUNTIF(E:E,$N10) -> 6 | R10: =COUNTIF(F:F,$N10) -> 8 | S10: =COUNTIF(G:G,$N10) -> 6 | T10: =COUNTIF(H:H,$N10) -> 7 | U10: =COUNTIF(I:I,$N10) -> 7 | V10: =COUNTIF(J:J,$N10) -> 12 | W10: =COUNTIF(K:K,$N10) -> 10 | X10: =COUNTIF(L:L,$N10) -> 6 | Z10: Purple | AA10: =COUNTIF(A:A,Z10) -> 74
A11: Blue | C11: =IF($A11=C$1,$A12,"") ->  | D11: =IF($A11=D$1,$A12,"") ->  | E11: =IF($A11=E$1,$A12,"") -> Green | F11: =IF($A11=F$1,$A12,"") ->  | G11: =IF($A11=G$1,$A12,"") ->  | H11: =IF($A11=H$1,$A12,"") ->  | I11: =IF($A11=I$1,$A12,"") ->  | J11: =IF($A11=J$1,$A12,"") ->  | K11: =IF($A11=K$1,$A12,"") ->  | L11: =IF($A11=L$1,$A12,"") ->  | N11: Green | O11: =COUNTIF(C:C,$N11) -> 2 | P11: =COUNTIF(D:D,$N11) -> 6 | Q11: =COUNTIF(E:E,$N11) -> 9 | R11: =COUNTIF(F:F,$N11) -> 8 | S11: =COUNTIF(G:G,$N11) -> 6 | T11: =COUNTIF(H:H,$N11) -> 10 | U11: =COUNTIF(I:I,$N11) -> 8 | V11: =COUNTIF(J:J,$N11) -> 8 | W11: =COUNTIF(K:K,$N11) -> 4 | X11: =COUNTIF(L:L,$N11) -> 9 | Z11: Green | AA11: =COUNTIF(A:A,Z11) -> 69
A12: Green | C12: =IF($A12=C$1,$A13,"") ->  | D12: =IF($A12=D$1,$A13,"") ->  | E12: =IF($A12=E$1,$A13,"") ->  | F12: =IF($A12=F$1,$A13,"") ->  | G12: =IF($A12=G$1,$A13,"") ->  | H12: =IF($A12=H$1,$A13,"") ->  | I12: =IF($A12=I$1,$A13,"") ->  | J12: =IF($A12=J$1,$A13,"") ->  | K12: =IF($A12=K$1,$A13,"") ->  | L12: =IF($A12=L$1,$A13,"") -> Yellow | N12: Totaal | O12: =SUM(O2:O11) -> 57 | P12: =SUM(P2:P11) -> 70 | Q12: 76 | R12: 74 | S12: 59 | T12: 80 | U12: 80 | V12: 68 | W12: 75 | X12: 69 | AA12: =SUM(AA2:AA11) -> 700
A13: Yellow | C13: =IF($A13=C$1,$A14,"") -> Black | D13: =IF($A13=D$1,$A14,"") ->  | E13: =IF($A13=E$1,$A14,"") ->  | F13: =IF($A13=F$1,$A14,"") ->  | G13: =IF($A13=G$1,$A14,"") ->  | H13: =IF($A13=H$1,$A14,"") ->  | I13: =IF($A13=I$1,$A14,"") ->  | J13: =IF($A13=J$1,$A14,"") ->  | K13: =IF($A13=K$1,$A14,"") ->  | L13: =IF($A13=L$1,$A14,"") -> 
A14: Black | C14: =IF($A14=C$1,$A15,"") ->  | D14: =IF($A14=D$1,$A15,"") ->  | E14: =IF($A14=E$1,$A15,"") ->  | F14: =IF($A14=F$1,$A15,"") ->  | G14: =IF($A14=G$1,$A15,"") ->  | H14: =IF($A14=H$1,$A15,"") ->  | I14: =IF($A14=I$1,$A15,"") -> White | J14: =IF($A14=J$1,$A15,"") ->  | K14: =IF($A14=K$1,$A15,"") ->  | L14: =IF($A14=L$1,$A15,"") ->  | N14: Yellow | P14: Orange | R14: Blue | T14: Cyan | V14: White | X14: Red | Z14: Black | AB14: Pink | AD14: Purple | AF14: Green
A15: White | C15: =IF($A15=C$1,$A16,"") ->  | D15: =IF($A15=D$1,$A16,"") ->  | E15: =IF($A15=E$1,$A16,"") ->  | F15: =IF($A15=F$1,$A16,"") ->  | G15: =IF($A15=G$1,$A16,"") -> Purple | H15: =IF($A15=H$1,$A16,"") ->  | I15: =IF($A15=I$1,$A16,"") ->  | J15: =IF($A15=J$1,$A16,"") ->  | K15: =IF($A15=K$1,$A16,"") ->  | L15: =IF($A15=L$1,$A16,"") ->  | N15: =SUM(O2/O$12)*100 -> 8.771929825 | O15: Yellow | P15: =SUM(P2/P$12)*100 -> 10 | Q15: Yellow | R15: =SUM(Q2/Q$12)*100 -> 6.578947368 | S15: Yellow | T15: =SUM(R2/R$12)*100 -> 8.108108108 | U15: Yellow | V15: =SUM(S2/S$12)*100 -> 5.084745763 | W15: Yellow | X15: =SUM(T2/T$12)*100 -> 7.5 | Y15: Yellow | Z15: =SUM(U2/U$12)*100 -> 8.75 | AA15: Yellow | AB15: =SUM(V2/V$12)*100 -> 4.411764706 | AC15: Yellow | AD15: =SUM(W2/W$12)*100 -> 9.333333333 | AE15: Yellow | AF15: =SUM(X2/X$12)*100 -> 10.14492754 | AG15: Yellow
A16: Purple | C16: =IF($A16=C$1,$A17,"") ->  | D16: =IF($A16=D$1,$A17,"") ->  | E16: =IF($A16=E$1,$A17,"") ->  | F16: =IF($A16=F$1,$A17,"") ->  | G16: =IF($A16=G$1,$A17,"") ->  | H16: =IF($A16=H$1,$A17,"") ->  | I16: =IF($A16=I$1,$A17,"") ->  | J16: =IF($A16=J$1,$A17,"") ->  | K16: =IF($A16=K$1,$A17,"") -> Cyan | L16: =IF($A16=L$1,$A17,"") ->  | N16: =SUM(O3/O$12)*100 -> 12.28070175 | O16: Orange | P16: =SUM(P3/P$12)*100 -> 15.71428571 | Q16: Orange | R16: =SUM(Q3/Q$12)*100 -> 5.263157895 | S16: Orange | T16: =SUM(R3/R$12)*100 -> 12.16216216 | U16: Orange | V16: =SUM(S3/S$12)*100 -> 8.474576271 | W16: Orange | X16: =SUM(T3/T$12)*100 -> 5 | Y16: Orange | Z16: =SUM(U3/U$12)*100 -> 13.75 | AA16: Orange | AB16: =SUM(V3/V$12)*100 -> 11.76470588 | AC16: Orange | AD16: =SUM(W3/W$12)*100 -> 8 | AE16: Orange | AF16: =SUM(X3/X$12)*100 -> 7.246376812 | AG16: Orange
A17: Cyan | C17: =IF($A17=C$1,$A18,"") ->  | D17: =IF($A17=D$1,$A18,"") ->  | E17: =IF($A17=E$1,$A18,"") ->  | F17: =IF($A17=F$1,$A18,"") -> White | G17: =IF($A17=G$1,$A18,"") ->  | H17: =IF($A17=H$1,$A18,"") ->  | I17: =IF($A17=I$1,$A18,"") ->  | J17: =IF($A17=J$1,$A18,"") ->  | K17: =IF($A17=K$1,$A18,"") ->  | L17: =IF($A17=L$1,$A18,"") ->  | N17: =SUM(O4/O$12)*100 -> 7.01754386 | O17: Blue | P17: =SUM(P4/P$12)*100 -> 7.142857143 | Q17: Blue | R17: =SUM(Q4/Q$12)*100 -> 11.84210526 | S17: Blue | T17: =SUM(R4/R$12)*100 -> 14.86486486 | U17: Blue | V17: =SUM(S4/S$12)*100 -> 15.25423729 | W17: Blue | X17: =SUM(T4/T$12)*100 -> 11.25 | Y17: Blue | Z17: =SUM(U4/U$12)*100 -> 8.75 | AA17: Blue | AB17: =SUM(V4/V$12)*100 -> 10.29411765 | AC17: Blue | AD17: =SUM(W4/W$12)*100 -> 9.333333333 | AE17: Blue | AF17: =SUM(X4/X$12)*100 -> 11.5942029 | AG17: Blue
A18: White | C18: =IF($A18=C$1,$A19,"") ->  | D18: =IF($A18=D$1,$A19,"") ->  | E18: =IF($A18=E$1,$A19,"") ->  | F18: =IF($A18=F$1,$A19,"") ->  | G18: =IF($A18=G$1,$A19,"") -> Purple | H18: =IF($A18=H$1,$A19,"") ->  | I18: =IF($A18=I$1,$A19,"") ->  | J18: =IF($A18=J$1,$A19,"") ->  | K18: =IF($A18=K$1,$A19,"") ->  | L18: =IF($A18=L$1,$A19,"") ->  | N18: =SUM(O5/O$12)*100 -> 14.03508772 | O18: Cyan | P18: =SUM(P5/P$12)*100 -> 7.142857143 | Q18: Cyan | R18: =SUM(Q5/Q$12)*100 -> 11.84210526 | S18: Cyan | T18: =SUM(R5/R$12)*100 -> 12.16216216 | U18: Cyan | V18: =SUM(S5/S$12)*100 -> 13.55932203 | W18: Cyan | X18: =SUM(T5/T$12)*100 -> 13.75 | Y18: Cyan | Z18: =SUM(U5/U$12)*100 -> 5 | AA18: Cyan | AB18: =SUM(V5/V$12)*100 -> 4.411764706 | AC18: Cyan | AD18: =SUM(W5/W$12)*100 -> 10.66666667 | AE18: Cyan | AF18: =SUM(X5/X$12)*100 -> 13.04347826 | AG18: Cyan
A19: Purple | C19: =IF($A19=C$1,$A20,"") ->  | D19: =IF($A19=D$1,$A20,"") ->  | E19: =IF($A19=E$1,$A20,"") ->  | F19: =IF($A19=F$1,$A20,"") ->  | G19: =IF($A19=G$1,$A20,"") ->  | H19: =IF($A19=H$1,$A20,"") ->  | I19: =IF($A19=I$1,$A20,"") ->  | J19: =IF($A19=J$1,$A20,"") ->  | K19: =IF($A19=K$1,$A20,"") -> Orange | L19: =IF($A19=L$1,$A20,"") ->  | N19: =SUM(O6/O$12)*100 -> 1.754385965 | O19: White | P19: =SUM(P6/P$12)*100 -> 7.142857143 | Q19: White | R19: =SUM(Q6/Q$12)*100 -> 7.894736842 | S19: White | T19: =SUM(R6/R$12)*100 -> 12.16216216 | U19: White | V19: =SUM(S6/S$12)*100 -> 6.779661017 | W19: White | X19: =SUM(T6/T$12)*100 -> 5 | Y19: White | Z19: =SUM(U6/U$12)*100 -> 15 | AA19: White | AB19: =SUM(V6/V$12)*100 -> 10.29411765 | AC19: White | AD19: =SUM(W6/W$12)*100 -> 9.333333333 | AE19: White | AF19: =SUM(X6/X$12)*100 -> 5.797101449 | AG19: White
A20: Orange | C20: =IF($A20=C$1,$A21,"") ->  | D20: =IF($A20=D$1,$A21,"") -> Red | E20: =IF($A20=E$1,$A21,"") ->  | F20: =IF($A20=F$1,$A21,"") ->  | G20: =IF($A20=G$1,$A21,"") ->  | H20: =IF($A20=H$1,$A21,"") ->  | I20: =IF($A20=I$1,$A21,"") ->  | J20: =IF($A20=J$1,$A21,"") ->  | K20: =IF($A20=K$1,$A21,"") ->  | L20: =IF($A20=L$1,$A21,"") ->  | N20: =SUM(O7/O$12)*100 -> 5.263157895 | O20: Red | P20: =SUM(P7/P$12)*100 -> 14.28571429 | Q20: Red | R20: =SUM(Q7/Q$12)*100 -> 15.78947368 | S20: Red | T20: =SUM(R7/R$12)*100 -> 4.054054054 | U20: Red | V20: =SUM(S7/S$12)*100 -> 3.389830508 | W20: Red | X20: =SUM(T7/T$12)*100 -> 13.75 | Y20: Red | Z20: =SUM(U7/U$12)*100 -> 16.25 | AA20: Red | AB20: =SUM(V7/V$12)*100 -> 13.23529412 | AC20: Red | AD20: =SUM(W7/W$12)*100 -> 10.66666667 | AE20: Red | AF20: =SUM(X7/X$12)*100 -> 13.04347826 | AG20: Red
A21: Red | C21: =IF($A21=C$1,$A22,"") ->  | D21: =IF($A21=D$1,$A22,"") ->  | E21: =IF($A21=E$1,$A22,"") ->  | F21: =IF($A21=F$1,$A22,"") ->  | G21: =IF($A21=G$1,$A22,"") ->  | H21: =IF($A21=H$1,$A22,"") -> White | I21: =IF($A21=I$1,$A22,"") ->  | J21: =IF($A21=J$1,$A22,"") ->  | K21: =IF($A21=K$1,$A22,"") ->  | L21: =IF($A21=L$1,$A22,"") ->  | N21: =SUM(O8/O$12)*100 -> 15.78947368 | O21: Black | P21: =SUM(P8/P$12)*100 -> 8.571428571 | Q21: Black | R21: =SUM(Q8/Q$12)*100 -> 13.15789474 | S21: Black | T21: =SUM(R8/R$12)*100 -> 9.459459459 | U21: Black | V21: =SUM(S8/S$12)*100 -> 16.94915254 | W21: Black | X21: =SUM(T8/T$12)*100 -> 12.5 | Y21: Black | Z21: =SUM(U8/U$12)*100 -> 7.5 | AA21: Black | AB21: =SUM(V8/V$12)*100 -> 8.823529412 | AC21: Black | AD21: =SUM(W8/W$12)*100 -> 10.66666667 | AE21: Black | AF21: =SUM(X8/X$12)*100 -> 10.14492754 | AG21: Black
A22: White | C22: =IF($A22=C$1,$A23,"") ->  | D22: =IF($A22=D$1,$A23,"") ->  | E22: =IF($A22=E$1,$A23,"") ->  | F22: =IF($A22=F$1,$A23,"") ->  | G22: =IF($A22=G$1,$A23,"") -> Black | H22: =IF($A22=H$1,$A23,"") ->  | I22: =IF($A22=I$1,$A23,"") ->  | J22: =IF($A22=J$1,$A23,"") ->  | K22: =IF($A22=K$1,$A23,"") ->  | L22: =IF($A22=L$1,$A23,"") ->  | N22: =SUM(O9/O$12)*100 -> 19.29824561 | O22: Pink | P22: =SUM(P9/P$12)*100 -> 12.85714286 | Q22: Pink | R22: =SUM(Q9/Q$12)*100 -> 7.894736842 | S22: Pink | T22: =SUM(R9/R$12)*100 -> 5.405405405 | U22: Pink | V22: =SUM(S9/S$12)*100 -> 10.16949153 | W22: Pink | X22: =SUM(T9/T$12)*100 -> 10 | Y22: Pink | Z22: =SUM(U9/U$12)*100 -> 6.25 | AA22: Pink | AB22: =SUM(V9/V$12)*100 -> 7.352941176 | AC22: Pink | AD22: =SUM(W9/W$12)*100 -> 13.33333333 | AE22: Pink | AF22: =SUM(X9/X$12)*100 -> 7.246376812 | AG22: Pink
A23: Black | C23: =IF($A23=C$1,$A24,"") ->  | D23: =IF($A23=D$1,$A24,"") ->  | E23: =IF($A23=E$1,$A24,"") ->  | F23: =IF($A23=F$1,$A24,"") ->  | G23: =IF($A23=G$1,$A24,"") ->  | H23: =IF($A23=H$1,$A24,"") ->  | I23: =IF($A23=I$1,$A24,"") -> Orange | J23: =IF($A23=J$1,$A24,"") ->  | K23: =IF($A23=K$1,$A24,"") ->  | L23: =IF($A23=L$1,$A24,"") ->  | N23: =SUM(O10/O$12)*100 -> 12.28070175 | O23: Purple | P23: =SUM(P10/P$12)*100 -> 8.571428571 | Q23: Purple | R23: =SUM(Q10/Q$12)*100 -> 7.894736842 | S23: Purple | T23: =SUM(R10/R$12)*100 -> 10.81081081 | U23: Purple | V23: =SUM(S10/S$12)*100 -> 10.16949153 | W23: Purple | X23: =SUM(T10/T$12)*100 -> 8.75 | Y23: Purple | Z23: =SUM(U10/U$12)*100 -> 8.75 | AA23: Purple | AB23: =SUM(V10/V$12)*100 -> 17.64705882 | AC23: Purple | AD23: =SUM(W10/W$12)*100 -> 13.33333333 | AE23: Purple | AF23: =SUM(X10/X$12)*100 -> 8.695652174 | AG23: Purple
A24: Orange | C24: =IF($A24=C$1,$A25,"") ->  | D24: =IF($A24=D$1,$A25,"") -> Pink | E24: =IF($A24=E$1,$A25,"") ->  | F24: =IF($A24=F$1,$A25,"") ->  | G24: =IF($A24=G$1,$A25,"") ->  | H24: =IF($A24=H$1,$A25,"") ->  | I24: =IF($A24=I$1,$A25,"") ->  | J24: =IF($A24=J$1,$A25,"") ->  | K24: =IF($A24=K$1,$A25,"") ->  | L24: =IF($A24=L$1,$A25,"") ->  | N24: =SUM(O11/O$12)*100 -> 3.50877193 | O24: Green | P24: =SUM(P11/P$12)*100 -> 8.571428571 | Q24: Green | R24: =SUM(Q11/Q$12)*100 -> 11.84210526 | S24: Green | T24: =SUM(R11/R$12)*100 -> 10.81081081 | U24: Green | V24: =SUM(S11/S$12)*100 -> 10.16949153 | W24: Green | X24: =SUM(T11/T$12)*100 -> 12.5 | Y24: Green | Z24: =SUM(U11/U$12)*100 -> 10 | AA24: Green | AB24: =SUM(V11/V$12)*100 -> 11.76470588 | AC24: Green | AD24: =SUM(W11/W$12)*100 -> 5.333333333 | AE24: Green | AF24: =SUM(X11/X$12)*100 -> 13.04347826 | AG24: Green
A25: Pink | C25: =IF($A25=C$1,$A26,"") ->  | D25: =IF($A25=D$1,$A26,"") ->  | E25: =IF($A25=E$1,$A26,"") ->  | F25: =IF($A25=F$1,$A26,"") ->  | G25: =IF($A25=G$1,$A26,"") ->  | H25: =IF($A25=H$1,$A26,"") ->  | I25: =IF($A25=I$1,$A26,"") ->  | J25: =IF($A25=J$1,$A26,"") -> White | K25: =IF($A25=K$1,$A26,"") ->  | L25: =IF($A25=L$1,$A26,"") ->  | N25: =SUM(N15:N24) -> 100 | O25: Totaal | P25: =SUM(P15:P24) -> 100 | Q25: Totaal | R25: =SUM(R15:R24) -> 100 | S25: Totaal | T25: =SUM(T15:T24) -> 100 | U25: Totaal | V25: =SUM(V15:V24) -> 100 | W25: Totaal | X25: =SUM(X15:X24) -> 100 | Y25: Totaal | Z25: =SUM(Z15:Z24) -> 100 | AA25: Totaal | AB25: =SUM(AB15:AB24) -> 100 | AC25: Totaal | AD25: =SUM(AD15:AD24) -> 100 | AE25: Totaal | AF25: =SUM(AF15:AF24) -> 100 | AG25: Totaal
A26: White | C26: =IF($A26=C$1,$A27,"") ->  | D26: =IF($A26=D$1,$A27,"") ->  | E26: =IF($A26=E$1,$A27,"") ->  | F26: =IF($A26=F$1,$A27,"") ->  | G26: =IF($A26=G$1,$A27,"") -> Yellow | H26: =IF($A26=H$1,$A27,"") ->  | I26: =IF($A26=I$1,$A27,"") ->  | J26: =IF($A26=J$1,$A27,"") ->  | K26: =IF($A26=K$1,$A27,"") ->  | L26: =IF($A26=L$1,$A27,"") -> 
A27: Yellow | C27: =IF($A27=C$1,$A28,"") -> Blue | D27: =IF($A27=D$1,$A28,"") ->  | E27: =IF($A27=E$1,$A28,"") ->  | F27: =IF($A27=F$1,$A28,"") ->  | G27: =IF($A27=G$1,$A28,"") ->  | H27: =IF($A27=H$1,$A28,"") ->  | I27: =IF($A27=I$1,$A28,"") ->  | J27: =IF($A27=J$1,$A28,"") ->  | K27: =IF($A27=K$1,$A28,"") ->  | L27: =IF($A27=L$1,$A28,"") ->  | M27: * | N27: Kleur | O27: Niet gehit | P27: % | Q27: Gemid. | R27: Mod. | S27: =LOOKUP(REPT("z",99),A:A) -> Green | AA27: > % Kleur | AB27: StDev | AC27: StDev+ | AD27: Med. | AE27: Max.
A28: Blue | C28: =IF($A28=C$1,$A29,"") ->  | D28: =IF($A28=D$1,$A29,"") ->  | E28: =IF($A28=E$1,$A29,"") -> Orange | F28: =IF($A28=F$1,$A29,"") ->  | G28: =IF($A28=G$1,$A29,"") ->  | H28: =IF($A28=H$1,$A29,"") ->  | I28: =IF($A28=I$1,$A29,"") ->  | J28: =IF($A28=J$1,$A29,"") ->  | K28: =IF($A28=K$1,$A29,"") ->  | L28: =IF($A28=L$1,$A29,"") ->  | M28: 2 | N28: Yellow | O28: =BerekenenWitteCellen!B14 -> 27 | P28: =SUM((AA2/$AA$12)) -> 0.08 | Q28: =AVERAGE(BerekenenWitteCellen!$B1:$SG1) -> 12.51785714 | R28: =_xlfn.MODE.SNGL(BerekenenWitteCellen!$B1:$SG1) -> 6 | S28: =VLOOKUP($AA28,($N$15:$O$24),2,FALSE) -> Pink | AA28: =IF($N28=$O15,MAX($N$15:$N$24),"") -> 19.29824561 | AB28: =BerekenenWitteCellen!C14 -> 10.56441309 | AC28: =Q28+AB28 -> 23.08227023 | AD28: =MEDIAN(BerekenenWitteCellen!$B1:$SG1) -> 9 | AE28: =MAX(BerekenenWitteCellen!$B1:$SG1) -> 43
A29: Orange | C29: =IF($A29=C$1,$A30,"") ->  | D29: =IF($A29=D$1,$A30,"") -> Orange | E29: =IF($A29=E$1,$A30,"") ->  | F29: =IF($A29=F$1,$A30,"") ->  | G29: =IF($A29=G$1,$A30,"") ->  | H29: =IF($A29=H$1,$A30,"") ->  | I29: =IF($A29=I$1,$A30,"") ->  | J29: =IF($A29=J$1,$A30,"") ->  | K29: =IF($A29=K$1,$A30,"") ->  | L29: =IF($A29=L$1,$A30,"") ->  | M29: 3 | N29: Orange | O29: =BerekenenWitteCellen!B15 -> 4 | P29: =SUM((AA3/$AA$12)) -> 0.09857142857 | Q29: =AVERAGE(BerekenenWitteCellen!$B2:$SG2) -> 10.14492754 | R29: =_xlfn.MODE.SNGL(BerekenenWitteCellen!$B2:$SG2) -> 1 | S29: =VLOOKUP($AA29,($P$15:$Q$24),2,FALSE) -> Orange | AA29: =IF($N29=$O16,MAX(P15:P24),"") -> 15.71428571 | AB29: =BerekenenWitteCellen!C15 -> 9.347208158 | AC29: =Q29+AB29 -> 19.49213569 | AD29: =MEDIAN(BerekenenWitteCellen!$B2:$SG2) -> 7 | AE29: =MAX(BerekenenWitteCellen!$B2:$SG2) -> 38
A30: Orange | C30: =IF($A30=C$1,$A31,"") ->  | D30: =IF($A30=D$1,$A31,"") -> Orange | E30: =IF($A30=E$1,$A31,"") ->  | F30: =IF($A30=F$1,$A31,"") ->  | G30: =IF($A30=G$1,$A31,"") ->  | H30: =IF($A30=H$1,$A31,"") ->  | I30: =IF($A30=I$1,$A31,"") ->  | J30: =IF($A30=J$1,$A31,"") ->  | K30: =IF($A30=K$1,$A31,"") ->  | L30: =IF($A30=L$1,$A31,"") ->  | M30: 4 | N30: Blue | O30: =BerekenenWitteCellen!B16 -> 13 | P30: =SUM((AA4/$AA$12)) -> 0.1071428571 | Q30: =AVERAGE(BerekenenWitteCellen!$B3:$SG3) -> 9.418918919 | R30: =_xlfn.MODE.SNGL(BerekenenWitteCellen!$B3:$SG3) -> 2 | S30: =VLOOKUP($AA30,($R$15:$S$24),2,FALSE) -> Red | AA30: =IF($N30=$O17,MAX(R15:R24),"") -> 15.78947368 | AB30: =BerekenenWitteCellen!C16 -> 9.312889581 | AC30: =Q30+AB30 -> 18.7318085 | AD30: =MEDIAN(BerekenenWitteCellen!$B3:$SG3) -> 6 | AE30: =MAX(BerekenenWitteCellen!$B3:$SG3) -> 52
A31: Orange | C31: =IF($A31=C$1,$A32,"") ->  | D31: =IF($A31=D$1,$A32,"") -> White | E31: =IF($A31=E$1,$A32,"") ->  | F31: =IF($A31=F$1,$A32,"") ->  | G31: =IF($A31=G$1,$A32,"") ->  | H31: =IF($A31=H$1,$A32,"") ->  | I31: =IF($A31=I$1,$A32,"") ->  | J31: =IF($A31=J$1,$A32,"") ->  | K31: =IF($A31=K$1,$A32,"") ->  | L31: =IF($A31=L$1,$A32,"") ->  | M31: 5 | N31: Cyan | O31: =BerekenenWitteCellen!B17 -> 5 | P31: =SUM((AA5/$AA$12)) -> 0.1042857143 | Q31: =AVERAGE(BerekenenWitteCellen!$B4:$SG4) -> 9.397260274 | R31: =_xlfn.MODE.SNGL(BerekenenWitteCellen!$B4:$SG4) -> 1 | S31: =VLOOKUP($AA31,($T$15:$U$24),2,FALSE) -> Blue | AA31: =IF($N31=$O18,MAX(T15:T24),"") -> 14.86486486 | AB31: =BerekenenWitteCellen!C17 -> 7.82993855 | AC31: =Q31+AB31 -> 17.22719882 | AD31: =MEDIAN(BerekenenWitteCellen!$B4:$SG4) -> 7 | AE31: =MAX(BerekenenWitteCellen!$B4:$SG4) -> 32
A32: White | C32: =IF($A32=C$1,$A33,"") ->  | D32: =IF($A32=D$1,$A33,"") ->  | E32: =IF($A32=E$1,$A33,"") ->  | F32: =IF($A32=F$1,$A33,"") ->  | G32: =IF($A32=G$1,$A33,"") -> Pink | H32: =IF($A32=H$1,$A33,"") ->  | I32: =IF($A32=I$1,$A33,"") ->  | J32: =IF($A32=J$1,$A33,"") ->  | K32: =IF($A32=K$1,$A33,"") ->  | L32: =IF($A32=L$1,$A33,"") ->  | M32: 6 | N32: White | O32: =BerekenenWitteCellen!B18 -> 6 | P32: =SUM((AA6/$AA$12)) -> 0.08285714286 | Q32: =AVERAGE(BerekenenWitteCellen!$B5:$SG5) -> 12.15789474 | R32: =_xlfn.MODE.SNGL(BerekenenWitteCellen!$B5:$SG5) -> 6 | S32: =VLOOKUP($AA32,($V$15:$W$24),2,FALSE) -> Black | AA32: =IF($N32=$O19,MAX(V15:V24),"") -> 16.94915254 | AB32: =BerekenenWitteCellen!C18 -> 9.992610381 | AC32: =Q32+AB32 -> 22.15050512 | AD32: =MEDIAN(BerekenenWitteCellen!$B5:$SG5) -> 9 | AE32: =MAX(BerekenenWitteCellen!$B5:$SG5) -> 41
A33: Pink | C33: =IF($A33=C$1,$A34,"") ->  | D33: =IF($A33=D$1,$A34,"") ->  | E33: =IF($A33=E$1,$A34,"") ->  | F33: =IF($A33=F$1,$A34,"") ->  | G33: =IF($A33=G$1,$A34,"") ->  | H33: =IF($A33=H$1,$A34,"") ->  | I33: =IF($A33=I$1,$A34,"") ->  | J33: =IF($A33=J$1,$A34,"") -> Orange | K33: =IF($A33=K$1,$A34,"") ->  | L33: =IF($A33=L$1,$A34,"") ->  | M33: 7 | N33: Red | O33: =BerekenenWitteCellen!B19 -> 3 | P33: =SUM((AA7/$AA$12)) -> 0.1128571429 | Q33: =AVERAGE(BerekenenWitteCellen!$B6:$SG6) -> 8.923076923 | R33: =_xlfn.MODE.SNGL(BerekenenWitteCellen!$B6:$SG6) -> 1 | S33: =VLOOKUP($AA33,($X$15:$Y$24),2,FALSE) -> Cyan | AA33: =IF($N33=$O20,MAX(X15:X24),"") -> 13.75 | AB33: =BerekenenWitteCellen!C19 -> 9.331184593 | AC33: =Q33+AB33 -> 18.25426152 | AD33: =MEDIAN(BerekenenWitteCellen!$B6:$SG6) -> 6 | AE33: =MAX(BerekenenWitteCellen!$B6:$SG6) -> 52
A34: Orange | C34: =IF($A34=C$1,$A35,"") ->  | D34: =IF($A34=D$1,$A35,"") -> Red | E34: =IF($A34=E$1,$A35,"") ->  | F34: =IF($A34=F$1,$A35,"") ->  | G34: =IF($A34=G$1,$A35,"") ->  | H34: =IF($A34=H$1,$A35,"") ->  | I34: =IF($A34=I$1,$A35,"") ->  | J34: =IF($A34=J$1,$A35,"") ->  | K34: =IF($A34=K$1,$A35,"") ->  | L34: =IF($A34=L$1,$A35,"") ->  | M34: 8 | N34: Black | O34: =BerekenenWitteCellen!B20 -> 8 | P34: =SUM((AA8/$AA$12)) -> 0.1128571429 | Q34: =AVERAGE(BerekenenWitteCellen!$B7:$SG7) -> 8.721518987 | R34: =_xlfn.MODE.SNGL(BerekenenWitteCellen!$B7:$SG7) -> 2 | S34: =VLOOKUP($AA34,($Z$15:$AA$24),2,FALSE) -> Red | AA34: =IF($N34=$O21,MAX(Z15:Z24),"") -> 16.25 | AB34: =BerekenenWitteCellen!C20 -> 7.035059956 | AC34: =Q34+AB34 -> 15.75657894 | AD34: =MEDIAN(BerekenenWitteCellen!$B7:$SG7) -> 7 | AE34: =MAX(BerekenenWitteCellen!$B7:$SG7) -> 32
A35: Red | C35: =IF($A35=C$1,$A36,"") ->  | D35: =IF($A35=D$1,$A36,"") ->  | E35: =IF($A35=E$1,$A36,"") ->  | F35: =IF($A35=F$1,$A36,"") ->  | G35: =IF($A35=G$1,$A36,"") ->  | H35: =IF($A35=H$1,$A36,"") -> Cyan | I35: =IF($A35=I$1,$A36,"") ->  | J35: =IF($A35=J$1,$A36,"") ->  | K35: =IF($A35=K$1,$A36,"") ->  | L35: =IF($A35=L$1,$A36,"") ->  | M35: 9 | N35: Pink | O35: =BerekenenWitteCellen!B21 -> 2 | P35: =SUM((AA9/$AA$12)) -> 0.09714285714 | Q35: =AVERAGE(BerekenenWitteCellen!$B8:$SG8) -> 9.970588235 | R35: =_xlfn.MODE.SNGL(BerekenenWitteCellen!$B8:$SG8) -> 2 | S35: =VLOOKUP($AA35,($AB$15:$AC$24),2,FALSE) -> Purple | AA35: =IF($N35=$O22,MAX(AB15:AB24),"") -> 17.64705882 | AB35: =BerekenenWitteCellen!C21 -> 9.407397884 | AC35: =Q35+AB35 -> 19.37798612 | AD35: =MEDIAN(BerekenenWitteCellen!$B8:$SG8) -> 7.5 | AE35: =MAX(BerekenenWitteCellen!$B8:$SG8) -> 43
A36: Cyan | C36: =IF($A36=C$1,$A37,"") ->  | D36: =IF($A36=D$1,$A37,"") ->  | E36: =IF($A36=E$1,$A37,"") ->  | F36: =IF($A36=F$1,$A37,"") -> Black | G36: =IF($A36=G$1,$A37,"") ->  | H36: =IF($A36=H$1,$A37,"") ->  | I36: =IF($A36=I$1,$A37,"") ->  | J36: =IF($A36=J$1,$A37,"") ->  | K36: =IF($A36=K$1,$A37,"") ->  | L36: =IF($A36=L$1,$A37,"") ->  | M36: 10 | N36: Purple | O36: =BerekenenWitteCellen!B22 -> 18 | P36: =SUM((AA10/$AA$12)) -> 0.1057142857 | Q36: =AVERAGE(BerekenenWitteCellen!$B9:$SG9) -> 9.283783784 | R36: =_xlfn.MODE.SNGL(BerekenenWitteCellen!$B9:$SG9) -> 1 | S36: =VLOOKUP($AA36,($AD$15:$AE$24),2,FALSE) -> Pink | AA36: =IF($N36=$O23,MAX(AD15:AD24),"") -> 13.33333333 | AB36: =BerekenenWitteCellen!C22 -> 6.850764941 | AC36: =Q36+AB36 -> 16.13454872 | AD36: =MEDIAN(BerekenenWitteCellen!$B9:$SG9) -> 8 | AE36: =MAX(BerekenenWitteCellen!$B9:$SG9) -> 31
A37: Black | C37: =IF($A37=C$1,$A38,"") ->  | D37: =IF($A37=D$1,$A38,"") ->  | E37: =IF($A37=E$1,$A38,"") ->  | F37: =IF($A37=F$1,$A38,"") ->  | G37: =IF($A37=G$1,$A38,"") ->  | H37: =IF($A37=H$1,$A38,"") ->  | I37: =IF($A37=I$1,$A38,"") -> Yellow | J37: =IF($A37=J$1,$A38,"") ->  | K37: =IF($A37=K$1,$A38,"") ->  | L37: =IF($A37=L$1,$A38,"") ->  | M37: 11 | N37: Green | O37: =BerekenenWitteCellen!B23 -> 1 | P37: =SUM((AA11/$AA$12)) -> 0.09857142857 | Q37: =AVERAGE(BerekenenWitteCellen!$B10:$SG10) -> 10.01449275 | R37: =_xlfn.MODE.SNGL(BerekenenWitteCellen!$B10:$SG10) -> 1 | S37: =VLOOKUP($AA37,($AF$15:$AG$24),2,FALSE) -> Cyan | AA37: =IF($N37=$O24,MAX(AF15:AF24),"") -> 13.04347826 | AB37: =BerekenenWitteCellen!C23 -> 7.67735755 | AC37: =Q37+AB37 -> 17.6918503 | AD37: =MEDIAN(BerekenenWitteCellen!$B10:$SG10) -> 8 | AE37: =MAX(BerekenenWitteCellen!$B10:$SG10) -> 34
A38: Yellow | C38: =IF($A38=C$1,$A39,"") -> Black | D38: =IF($A38=D$1,$A39,"") ->  | E38: =IF($A38=E$1,$A39,"") ->  | F38: =IF($A38=F$1,$A39,"") ->  | G38: =IF($A38=G$1,$A39,"") ->  | H38: =IF($A38=H$1,$A39,"") ->  | I38: =IF($A38=I$1,$A39,"") ->  | J38: =IF($A38=J$1,$A39,"") ->  | K38: =IF($A38=K$1,$A39,"") ->  | L38: =IF($A38=L$1,$A39,"") -> 
A39: Black | C39: =IF($A39=C$1,$A40,"") ->  | D39: =IF($A39=D$1,$A40,"") ->  | E39: =IF($A39=E$1,$A40,"") ->  | F39: =IF($A39=F$1,$A40,"") ->  | G39: =IF($A39=G$1,$A40,"") ->  | H39: =IF($A39=H$1,$A40,"") ->  | I39: =IF($A39=I$1,$A40,"") -> Yellow | J39: =IF($A39=J$1,$A40,"") ->  | K39: =IF($A39=K$1,$A40,"") ->  | L39: =IF($A39=L$1,$A40,"") -> 
A40: Yellow | C40: =IF($A40=C$1,$A41,"") -> Pink | D40: =IF($A40=D$1,$A41,"") ->  | E40: =IF($A40=E$1,$A41,"") ->  | F40: =IF($A40=F$1,$A41,"") ->  | G40: =IF($A40=G$1,$A41,"") ->  | H40: =IF($A40=H$1,$A41,"") ->  | I40: =IF($A40=I$1,$A41,"") ->  | J40: =IF($A40=J$1,$A41,"") ->  | K40: =IF($A40=K$1,$A41,"") ->  | L40: =IF($A40=L$1,$A41,"") -> 
A41: Pink | C41: =IF($A41=C$1,$A42,"") ->  | D41: =IF($A41=D$1,$A42,"") ->  | E41: =IF($A41=E$1,$A42,"") ->  | F41: =IF($A41=F$1,$A42,"") ->  | G41: =IF($A41=G$1,$A42,"") ->  | H41: =IF($A41=H$1,$A42,"") ->  | I41: =IF($A41=I$1,$A42,"") ->  | J41: =IF($A41=J$1,$A42,"") -> Blue | K41: =IF($A41=K$1,$A42,"") ->  | L41: =IF($A41=L$1,$A42,"") -> 
A42: Blue | C42: =IF($A42=C$1,$A43,"") ->  | D42: =IF($A42=D$1,$A43,"") ->  | E42: =IF($A42=E$1,$A43,"") -> Purple | F42: =IF($A42=F$1,$A43,"") ->  | G42: =IF($A42=G$1,$A43,"") ->  | H42: =IF($A42=H$1,$A43,"") ->  | I42: =IF($A42=I$1,$A43,"") ->  | J42: =IF($A42=J$1,$A43,"") ->  | K42: =IF($A42=K$1,$A43,"") ->  | L42: =IF($A42=L$1,$A43,"") -> 
A43: Purple | C43: =IF($A43=C$1,$A44,"") ->  | D43: =IF($A43=D$1,$A44,"") ->  | E43: =IF($A43=E$1,$A44,"") ->  | F43: =IF($A43=F$1,$A44,"") ->  | G43: =IF($A43=G$1,$A44,"") ->  | H43: =IF($A43=H$1,$A44,"") ->  | I43: =IF($A43=I$1,$A44,"") ->  | J43: =IF($A43=J$1,$A44,"") ->  | K43: =IF($A43=K$1,$A44,"") -> Pink | L43: =IF($A43=L$1,$A44,"") -> 
A44: Pink | C44: =IF($A44=C$1,$A45,"") ->  | D44: =IF($A44=D$1,$A45,"") ->  | E44: =IF($A44=E$1,$A45,"") ->  | F44: =IF($A44=F$1,$A45,"") ->  | G44: =IF($A44=G$1,$A45,"") ->  | H44: =IF($A44=H$1,$A45,"") ->  | I44: =IF($A44=I$1,$A45,"") ->  | J44: =IF($A44=J$1,$A45,"") -> Pink | K44: =IF($A44=K$1,$A45,"") ->  | L44: =IF($A44=L$1,$A45,"") -> 
A45: Pink | C45: =IF($A45=C$1,$A46,"") ->  | D45: =IF($A45=D$1,$A46,"") ->  | E45: =IF($A45=E$1,$A46,"") ->  | F45: =IF($A45=F$1,$A46,"") ->  | G45: =IF($A45=G$1,$A46,"") ->  | H45: =IF($A45=H$1,$A46,"") ->  | I45: =IF($A45=I$1,$A46,"") ->  | J45: =IF($A45=J$1,$A46,"") -> Green | K45: =IF($A45=K$1,$A46,"") ->  | L45: =IF($A45=L$1,$A46,"") -> 
A46: Green | C46: =IF($A46=C$1,$A47,"") ->  | D46: =IF($A46=D$1,$A47,"") ->  | E46: =IF($A46=E$1,$A47,"") ->  | F46: =IF($A46=F$1,$A47,"") ->  | G46: =IF($A46=G$1,$A47,"") ->  | H46: =IF($A46=H$1,$A47,"") ->  | I46: =IF($A46=I$1,$A47,"") ->  | J46: =IF($A46=J$1,$A47,"") ->  | K46: =IF($A46=K$1,$A47,"") ->  | L46: =IF($A46=L$1,$A47,"") -> Cyan
A47: Cyan | C47: =IF($A47=C$1,$A48,"") ->  | D47: =IF($A47=D$1,$A48,"") ->  | E47: =IF($A47=E$1,$A48,"") ->  | F47: =IF($A47=F$1,$A48,"") -> Purple | G47: =IF($A47=G$1,$A48,"") ->  | H47: =IF($A47=H$1,$A48,"") ->  | I47: =IF($A47=I$1,$A48,"") ->  | J47: =IF($A47=J$1,$A48,"") ->  | K47: =IF($A47=K$1,$A48,"") ->  | L47: =IF($A47=L$1,$A48,"") -> 
A48: Purple | C48: =IF($A48=C$1,$A49,"") ->  | D48: =IF($A48=D$1,$A49,"") ->  | E48: =IF($A48=E$1,$A49,"") ->  | F48: =IF($A48=F$1,$A49,"") ->  | G48: =IF($A48=G$1,$A49,"") ->  | H48: =IF($A48=H$1,$A49,"") ->  | I48: =IF($A48=I$1,$A49,"") ->  | J48: =IF($A48=J$1,$A49,"") ->  | K48: =IF($A48=K$1,$A49,"") -> Pink | L48: =IF($A48=L$1,$A49,"") -> 
A49: Pink | C49: =IF($A49=C$1,$A50,"") ->  | D49: =IF($A49=D$1,$A50,"") ->  | E49: =IF($A49=E$1,$A50,"") ->  | F49: =IF($A49=F$1,$A50,"") ->  | G49: =IF($A49=G$1,$A50,"") ->  | H49: =IF($A49=H$1,$A50,"") ->  | I49: =IF($A49=I$1,$A50,"") ->  | J49: =IF($A49=J$1,$A50,"") -> Red | K49: =IF($A49=K$1,$A50,"") ->  | L49: =IF($A49=L$1,$A50,"") -> 
A50: Red | C50: =IF($A50=C$1,$A51,"") ->  | D50: =IF($A50=D$1,$A51,"") ->  | E50: =IF($A50=E$1,$A51,"") ->  | F50: =IF($A50=F$1,$A51,"") ->  | G50: =IF($A50=G$1,$A51,"") ->  | H50: =IF($A50=H$1,$A51,"") -> Pink | I50: =IF($A50=I$1,$A51,"") ->  | J50: =IF($A50=J$1,$A51,"") ->  | K50: =IF($A50=K$1,$A51,"") ->  | L50: =IF($A50=L$1,$A51,"") -> 
A51: Pink | C51: =IF($A51=C$1,$A52,"") ->  | D51: =IF($A51=D$1,$A52,"") ->  | E51: =IF($A51=E$1,$A52,"") ->  | F51: =IF($A51=F$1,$A52,"") ->  | G51: =IF($A51=G$1,$A52,"") ->  | H51: =IF($A51=H$1,$A52,"") ->  | I51: =IF($A51=I$1,$A52,"") ->  | J51: =IF($A51=J$1,$A52,"") -> Orange | K51: =IF($A51=K$1,$A52,"") ->  | L51: =IF($A51=L$1,$A52,"") -> 
A52: Orange | C52: =IF($A52=C$1,$A53,"") ->  | D52: =IF($A52=D$1,$A53,"") -> Green | E52: =IF($A52=E$1,$A53,"") ->  | F52: =IF($A52=F$1,$A53,"") ->  | G52: =IF($A52=G$1,$A53,"") ->  | H52: =IF($A52=H$1,$A53,"") ->  | I52: =IF($A52=I$1,$A53,"") ->  | J52: =IF($A52=J$1,$A53,"") ->  | K52: =IF($A52=K$1,$A53,"") ->  | L52: =IF($A52=L$1,$A53,"") -> 
A53: Green | C53: =IF($A53=C$1,$A54,"") ->  | D53: =IF($A53=D$1,$A54,"") ->  | E53: =IF($A53=E$1,$A54,"") ->  | F53: =IF($A53=F$1,$A54,"") ->  | G53: =IF($A53=G$1,$A54,"") ->  | H53: =IF($A53=H$1,$A54,"") ->  | I53: =IF($A53=I$1,$A54,"") ->  | J53: =IF($A53=J$1,$A54,"") ->  | K53: =IF($A53=K$1,$A54,"") ->  | L53: =IF($A53=L$1,$A54,"") -> Yellow
A54: Yellow | C54: =IF($A54=C$1,$A55,"") -> Red | D54: =IF($A54=D$1,$A55,"") ->  | E54: =IF($A54=E$1,$A55,"") ->  | F54: =IF($A54=F$1,$A55,"") ->  | G54: =IF($A54=G$1,$A55,"") ->  | H54: =IF($A54=H$1,$A55,"") ->  | I54: =IF($A54=I$1,$A55,"") ->  | J54: =IF($A54=J$1,$A55,"") ->  | K54: =IF($A54=K$1,$A55,"") ->  | L54: =IF($A54=L$1,$A55,"") -> 
A55: Red | C55: =IF($A55=C$1,$A56,"") ->  | D55: =IF($A55=D$1,$A56,"") ->  | E55: =IF($A55=E$1,$A56,"") ->  | F55: =IF($A55=F$1,$A56,"") ->  | G55: =IF($A55=G$1,$A56,"") ->  | H55: =IF($A55=H$1,$A56,"") -> Black | I55: =IF($A55=I$1,$A56,"") ->  | J55: =IF($A55=J$1,$A56,"") ->  | K55: =IF($A55=K$1,$A56,"") ->  | L55: =IF($A55=L$1,$A56,"") -> 
A56: Black | C56: =IF($A56=C$1,$A57,"") ->  | D56: =IF($A56=D$1,$A57,"") ->  | E56: =IF($A56=E$1,$A57,"") ->  | F56: =IF($A56=F$1,$A57,"") ->  | G56: =IF($A56=G$1,$A57,"") ->  | H56: =IF($A56=H$1,$A57,"") ->  | I56: =IF($A56=I$1,$A57,"") -> Purple | J56: =IF($A56=J$1,$A57,"") ->  | K56: =IF($A56=K$1,$A57,"") ->  | L56: =IF($A56=L$1,$A57,"") -> 
A57: Purple | C57: =IF($A57=C$1,$A58,"") ->  | D57: =IF($A57=D$1,$A58,"") ->  | E57: =IF($A57=E$1,$A58,"") ->  | F57: =IF($A57=F$1,$A58,"") ->  | G57: =IF($A57=G$1,$A58,"") ->  | H57: =IF($A57=H$1,$A58,"") ->  | I57: =IF($A57=I$1,$A58,"") ->  | J57: =IF($A57=J$1,$A58,"") ->  | K57: =IF($A57=K$1,$A58,"") -> Pink | L57: =IF($A57=L$1,$A58,"") -> 
A58: Pink | C58: =IF($A58=C$1,$A59,"") ->  | D58: =IF($A58=D$1,$A59,"") ->  | E58: =IF($A58=E$1,$A59,"") ->  | F58: =IF($A58=F$1,$A59,"") ->  | G58: =IF($A58=G$1,$A59,"") ->  | H58: =IF($A58=H$1,$A59,"") ->  | I58: =IF($A58=I$1,$A59,"") ->  | J58: =IF($A58=J$1,$A59,"") -> White | K58: =IF($A58=K$1,$A59,"") ->  | L58: =IF($A58=L$1,$A59,"") -> 
A59: White | C59: =IF($A59=C$1,$A60,"") ->  | D59: =IF($A59=D$1,$A60,"") ->  | E59: =IF($A59=E$1,$A60,"") ->  | F59: =IF($A59=F$1,$A60,"") ->  | G59: =IF($A59=G$1,$A60,"") -> Purple | H59: =IF($A59=H$1,$A60,"") ->  | I59: =IF($A59=I$1,$A60,"") ->  | J59: =IF($A59=J$1,$A60,"") ->  | K59: =IF($A59=K$1,$A60,"") ->  | L59: =IF($A59=L$1,$A60,"") -> 
A60: Purple | C60: =IF($A60=C$1,$A61,"") ->  | D60: =IF($A60=D$1,$A61,"") ->  | E60: =IF($A60=E$1,$A61,"") ->  | F60: =IF($A60=F$1,$A61,"") ->  | G60: =IF($A60=G$1,$A61,"") ->  | H60: =IF($A60=H$1,$A61,"") ->  | I60: =IF($A60=I$1,$A61,"") ->  | J60: =IF($A60=J$1,$A61,"") ->  | K60: =IF($A60=K$1,$A61,"") -> Purple | L60: =IF($A60=L$1,$A61,"") -> 
A61: Purple | C61: =IF($A61=C$1,$A62,"") ->  | D61: =IF($A61=D$1,$A62,"") ->  | E61: =IF($A61=E$1,$A62,"") ->  | F61: =IF($A61=F$1,$A62,"") ->  | G61: =IF($A61=G$1,$A62,"") ->  | H61: =IF($A61=H$1,$A62,"") ->  | I61: =IF($A61=I$1,$A62,"") ->  | J61: =IF($A61=J$1,$A62,"") ->  | K61: =IF($A61=K$1,$A62,"") -> Black | L61: =IF($A61=L$1,$A62,"") -> 
A62: Black | C62: =IF($A62=C$1,$A63,"") ->  | D62: =IF($A62=D$1,$A63,"") ->  | E62: =IF($A62=E$1,$A63,"") ->  | F62: =IF($A62=F$1,$A63,"") ->  | G62: =IF($A62=G$1,$A63,"") ->  | H62: =IF($A62=H$1,$A63,"") ->  | I62: =IF($A62=I$1,$A63,"") -> Orange | J62: =IF($A62=J$1,$A63,"") ->  | K62: =IF($A62=K$1,$A63,"") ->  | L62: =IF($A62=L$1,$A63,"") -> 
A63: Orange | C63: =IF($A63=C$1,$A64,"") ->  | D63: =IF($A63=D$1,$A64,"") -> Yellow | E63: =IF($A63=E$1,$A64,"") ->  | F63: =IF($A63=F$1,$A64,"") ->  | G63: =IF($A63=G$1,$A64,"") ->  | H63: =IF($A63=H$1,$A64,"") ->  | I63: =IF($A63=I$1,$A64,"") ->  | J63: =IF($A63=J$1,$A64,"") ->  | K63: =IF($A63=K$1,$A64,"") ->  | L63: =IF($A63=L$1,$A64,"") -> 
A64: Yellow | C64: =IF($A64=C$1,$A65,"") -> Purple | D64: =IF($A64=D$1,$A65,"") ->  | E64: =IF($A64=E$1,$A65,"") ->  | F64: =IF($A64=F$1,$A65,"") ->  | G64: =IF($A64=G$1,$A65,"") ->  | H64: =IF($A64=H$1,$A65,"") ->  | I64: =IF($A64=I$1,$A65,"") ->  | J64: =IF($A64=J$1,$A65,"") ->  | K64: =IF($A64=K$1,$A65,"") ->  | L64: =IF($A64=L$1,$A65,"") -> 
A65: Purple | C65: =IF($A65=C$1,$A66,"") ->  | D65: =IF($A65=D$1,$A66,"") ->  | E65: =IF($A65=E$1,$A66,"") ->  | F65: =IF($A65=F$1,$A66,"") ->  | G65: =IF($A65=G$1,$A66,"") ->  | H65: =IF($A65=H$1,$A66,"") ->  | I65: =IF($A65=I$1,$A66,"") ->  | J65: =IF($A65=J$1,$A66,"") ->  | K65: =IF($A65=K$1,$A66,"") -> Cyan | L65: =IF($A65=L$1,$A66,"") -> 
A66: Cyan | C66: =IF($A66=C$1,$A67,"") ->  | D66: =IF($A66=D$1,$A67,"") ->  | E66: =IF($A66=E$1,$A67,"") ->  | F66: =IF($A66=F$1,$A67,"") -> Cyan | G66: =IF($A66=G$1,$A67,"") ->  | H66: =IF($A66=H$1,$A67,"") ->  | I66: =IF($A66=I$1,$A67,"") ->  | J66: =IF($A66=J$1,$A67,"") ->  | K66: =IF($A66=K$1,$A67,"") ->  | L66: =IF($A66=L$1,$A67,"") -> 
A67: Cyan | C67: =IF($A67=C$1,$A68,"") ->  | D67: =IF($A67=D$1,$A68,"") ->  | E67: =IF($A67=E$1,$A68,"") ->  | F67: =IF($A67=F$1,$A68,"") -> Red | G67: =IF($A67=G$1,$A68,"") ->  | H67: =IF($A67=H$1,$A68,"") ->  | I67: =IF($A67=I$1,$A68,"") ->  | J67: =IF($A67=J$1,$A68,"") ->  | K67: =IF($A67=K$1,$A68,"") ->  | L67: =IF($A67=L$1,$A68,"") -> 
A68: Red | C68: =IF($A68=C$1,$A69,"") ->  | D68: =IF($A68=D$1,$A69,"") ->  | E68: =IF($A68=E$1,$A69,"") ->  | F68: =IF($A68=F$1,$A69,"") ->  | G68: =IF($A68=G$1,$A69,"") ->  | H68: =IF($A68=H$1,$A69,"") -> Blue | I68: =IF($A68=I$1,$A69,"") ->  | J68: =IF($A68=J$1,$A69,"") ->  | K68: =IF($A68=K$1,$A69,"") ->  | L68: =IF($A68=L$1,$A69,"") -> 
A69: Blue | C69: =IF($A69=C$1,$A70,"") ->  | D69: =IF($A69=D$1,$A70,"") ->  | E69: =IF($A69=E$1,$A70,"") -> Yellow | F69: =IF($A69=F$1,$A70,"") ->  | G69: =IF($A69=G$1,$A70,"") ->  | H69: =IF($A69=H$1,$A70,"") ->  | I69: =IF($A69=I$1,$A70,"") ->  | J69: =IF($A69=J$1,$A70,"") ->  | K69: =IF($A69=K$1,$A70,"") ->  | L69: =IF($A69=L$1,$A70,"") -> 
A70: Yellow | C70: =IF($A70=C$1,$A71,"") -> Cyan | D70: =IF($A70=D$1,$A71,"") ->  | E70: =IF($A70=E$1,$A71,"") ->  | F70: =IF($A70=F$1,$A71,"") ->  | G70: =IF($A70=G$1,$A71,"") ->  | H70: =IF($A70=H$1,$A71,"") ->  | I70: =IF($A70=I$1,$A71,"") ->  | J70: =IF($A70=J$1,$A71,"") ->  | K70: =IF($A70=K$1,$A71,"") ->  | L70: =IF($A70=L$1,$A71,"") -> 
A71: Cyan | C71: =IF($A71=C$1,$A72,"") ->  | D71: =IF($A71=D$1,$A72,"") ->  | E71: =IF($A71=E$1,$A72,"") ->  | F71: =IF($A71=F$1,$A72,"") -> Orange | G71: =IF($A71=G$1,$A72,"") ->  | H71: =IF($A71=H$1,$A72,"") ->  | I71: =IF($A71=I$1,$A72,"") ->  | J71: =IF($A71=J$1,$A72,"") ->  | K71: =IF($A71=K$1,$A72,"") ->  | L71: =IF($A71=L$1,$A72,"") -> 
A72: Orange | C72: =IF($A72=C$1,$A73,"") ->  | D72: =IF($A72=D$1,$A73,"") -> Black | E72: =IF($A72=E$1,$A73,"") ->  | F72: =IF($A72=F$1,$A73,"") ->  | G72: =IF($A72=G$1,$A73,"") ->  | H72: =IF($A72=H$1,$A73,"") ->  | I72: =IF($A72=I$1,$A73,"") ->  | J72: =IF($A72=J$1,$A73,"") ->  | K72: =IF($A72=K$1,$A73,"") ->  | L72: =IF($A72=L$1,$A73,"") -> 
A73: Black | C73: =IF($A73=C$1,$A74,"") ->  | D73: =IF($A73=D$1,$A74,"") ->  | E73: =IF($A73=E$1,$A74,"") ->  | F73: =IF($A73=F$1,$A74,"") ->  | G73: =IF($A73=G$1,$A74,"") ->  | H73: =IF($A73=H$1,$A74,"") ->  | I73: =IF($A73=I$1,$A74,"") -> Green | J73: =IF($A73=J$1,$A74,"") ->  | K73: =IF($A73=K$1,$A74,"") ->  | L73: =IF($A73=L$1,$A74,"") -> 
A74: Green | C74: =IF($A74=C$1,$A75,"") ->  | D74: =IF($A74=D$1,$A75,"") ->  | E74: =IF($A74=E$1,$A75,"") ->  | F74: =IF($A74=F$1,$A75,"") ->  | G74: =IF($A74=G$1,$A75,"") ->  | H74: =IF($A74=H$1,$A75,"") ->  | I74: =IF($A74=I$1,$A75,"") ->  | J74: =IF($A74=J$1,$A75,"") ->  | K74: =IF($A74=K$1,$A75,"") ->  | L74: =IF($A74=L$1,$A75,"") -> Red
A75: Red | C75: =IF($A75=C$1,$A76,"") ->  | D75: =IF($A75=D$1,$A76,"") ->  | E75: =IF($A75=E$1,$A76,"") ->  | F75: =IF($A75=F$1,$A76,"") ->  | G75: =IF($A75=G$1,$A76,"") ->  | H75: =IF($A75=H$1,$A76,"") -> Yellow | I75: =IF($A75=I$1,$A76,"") ->  | J75: =IF($A75=J$1,$A76,"") ->  | K75: =IF($A75=K$1,$A76,"") ->  | L75: =IF($A75=L$1,$A76,"") -> 
A76: Yellow | C76: =IF($A76=C$1,$A77,"") -> Cyan | D76: =IF($A76=D$1,$A77,"") ->  | E76: =IF($A76=E$1,$A77,"") ->  | F76: =IF($A76=F$1,$A77,"") ->  | G76: =IF($A76=G$1,$A77,"") ->  | H76: =IF($A76=H$1,$A77,"") ->  | I76: =IF($A76=I$1,$A77,"") ->  | J76: =IF($A76=J$1,$A77,"") ->  | K76: =IF($A76=K$1,$A77,"") ->  | L76: =IF($A76=L$1,$A77,"") -> 
A77: Cyan | C77: =IF($A77=C$1,$A78,"") ->  | D77: =IF($A77=D$1,$A78,"") ->  | E77: =IF($A77=E$1,$A78,"") ->  | F77: =IF($A77=F$1,$A78,"") -> White | G77: =IF($A77=G$1,$A78,"") ->  | H77: =IF($A77=H$1,$A78,"") ->  | I77: =IF($A77=I$1,$A78,"") ->  | J77: =IF($A77=J$1,$A78,"") ->  | K77: =IF($A77=K$1,$A78,"") ->  | L77: =IF($A77=L$1,$A78,"") -> 
A78: White | C78: =IF($A78=C$1,$A79,"") ->  | D78: =IF($A78=D$1,$A79,"") ->  | E78: =IF($A78=E$1,$A79,"") ->  | F78: =IF($A78=F$1,$A79,"") ->  | G78: =IF($A78=G$1,$A79,"") -> Pink | H78: =IF($A78=H$1,$A79,"") ->  | I78: =IF($A78=I$1,$A79,"") ->  | J78: =IF($A78=J$1,$A79,"") ->  | K78: =IF($A78=K$1,$A79,"") ->  | L78: =IF($A78=L$1,$A79,"") -> 
A79: Pink | C79: =IF($A79=C$1,$A80,"") ->  | D79: =IF($A79=D$1,$A80,"") ->  | E79: =IF($A79=E$1,$A80,"") ->  | F79: =IF($A79=F$1,$A80,"") ->  | G79: =IF($A79=G$1,$A80,"") ->  | H79: =IF($A79=H$1,$A80,"") ->  | I79: =IF($A79=I$1,$A80,"") ->  | J79: =IF($A79=J$1,$A80,"") -> Purple | K79: =IF($A79=K$1,$A80,"") ->  | L79: =IF($A79=L$1,$A80,"") -> 
A80: Purple | C80: =IF($A80=C$1,$A81,"") ->  | D80: =IF($A80=D$1,$A81,"") ->  | E80: =IF($A80=E$1,$A81,"") ->  | F80: =IF($A80=F$1,$A81,"") ->  | G80: =IF($A80=G$1,$A81,"") ->  | H80: =IF($A80=H$1,$A81,"") ->  | I80: =IF($A80=I$1,$A81,"") ->  | J80: =IF($A80=J$1,$A81,"") ->  | K80: =IF($A80=K$1,$A81,"") -> Blue | L80: =IF($A80=L$1,$A81,"") -> 
A81: Blue | C81: =IF($A81=C$1,$A82,"") ->  | D81: =IF($A81=D$1,$A82,"") ->  | E81: =IF($A81=E$1,$A82,"") -> Red | F81: =IF($A81=F$1,$A82,"") ->  | G81: =IF($A81=G$1,$A82,"") ->  | H81: =IF($A81=H$1,$A82,"") ->  | I81: =IF($A81=I$1,$A82,"") ->  | J81: =IF($A81=J$1,$A82,"") ->  | K81: =IF($A81=K$1,$A82,"") ->  | L81: =IF($A81=L$1,$A82,"") -> 
A82: Red | C82: =IF($A82=C$1,$A83,"") ->  | D82: =IF($A82=D$1,$A83,"") ->  | E82: =IF($A82=E$1,$A83,"") ->  | F82: =IF($A82=F$1,$A83,"") ->  | G82: =IF($A82=G$1,$A83,"") ->  | H82: =IF($A82=H$1,$A83,"") -> Cyan | I82: =IF($A82=I$1,$A83,"") ->  | J82: =IF($A82=J$1,$A83,"") ->  | K82: =IF($A82=K$1,$A83,"") ->  | L82: =IF($A82=L$1,$A83,"") -> 
A83: Cyan | C83: =IF($A83=C$1,$A84,"") ->  | D83: =IF($A83=D$1,$A84,"") ->  | E83: =IF($A83=E$1,$A84,"") ->  | F83: =IF($A83=F$1,$A84,"") -> Red | G83: =IF($A83=G$1,$A84,"") ->  | H83: =IF($A83=H$1,$A84,"") ->  | I83: =IF($A83=I$1,$A84,"") ->  | J83: =IF($A83=J$1,$A84,"") ->  | K83: =IF($A83=K$1,$A84,"") ->  | L83: =IF($A83=L$1,$A84,"") -> 
A84: Red | C84: =IF($A84=C$1,$A85,"") ->  | D84: =IF($A84=D$1,$A85,"") ->  | E84: =IF($A84=E$1,$A85,"") ->  | F84: =IF($A84=F$1,$A85,"") ->  | G84: =IF($A84=G$1,$A85,"") ->  | H84: =IF($A84=H$1,$A85,"") -> Green | I84: =IF($A84=I$1,$A85,"") ->  | J84: =IF($A84=J$1,$A85,"") ->  | K84: =IF($A84=K$1,$A85,"") ->  | L84: =IF($A84=L$1,$A85,"") -> 
A85: Green | C85: =IF($A85=C$1,$A86,"") ->  | D85: =IF($A85=D$1,$A86,"") ->  | E85: =IF($A85=E$1,$A86,"") ->  | F85: =IF($A85=F$1,$A86,"") ->  | G85: =IF($A85=G$1,$A86,"") ->  | H85: =IF($A85=H$1,$A86,"") ->  | I85: =IF($A85=I$1,$A86,"") ->  | J85: =IF($A85=J$1,$A86,"") ->  | K85: =IF($A85=K$1,$A86,"") ->  | L85: =IF($A85=L$1,$A86,"") -> Purple
A86: Purple | C86: =IF($A86=C$1,$A87,"") ->  | D86: =IF($A86=D$1,$A87,"") ->  | E86: =IF($A86=E$1,$A87,"") ->  | F86: =IF($A86=F$1,$A87,"") ->  | G86: =IF($A86=G$1,$A87,"") ->  | H86: =IF($A86=H$1,$A87,"") ->  | I86: =IF($A86=I$1,$A87,"") ->  | J86: =IF($A86=J$1,$A87,"") ->  | K86: =IF($A86=K$1,$A87,"") -> Purple | L86: =IF($A86=L$1,$A87,"") -> 
A87: Purple | C87: =IF($A87=C$1,$A88,"") ->  | D87: =IF($A87=D$1,$A88,"") ->  | E87: =IF($A87=E$1,$A88,"") ->  | F87: =IF($A87=F$1,$A88,"") ->  | G87: =IF($A87=G$1,$A88,"") ->  | H87: =IF($A87=H$1,$A88,"") ->  | I87: =IF($A87=I$1,$A88,"") ->  | J87: =IF($A87=J$1,$A88,"") ->  | K87: =IF($A87=K$1,$A88,"") -> Pink | L87: =IF($A87=L$1,$A88,"") -> 
A88: Pink | C88: =IF($A88=C$1,$A89,"") ->  | D88: =IF($A88=D$1,$A89,"") ->  | E88: =IF($A88=E$1,$A89,"") ->  | F88: =IF($A88=F$1,$A89,"") ->  | G88: =IF($A88=G$1,$A89,"") ->  | H88: =IF($A88=H$1,$A89,"") ->  | I88: =IF($A88=I$1,$A89,"") ->  | J88: =IF($A88=J$1,$A89,"") -> Orange | K88: =IF($A88=K$1,$A89,"") ->  | L88: =IF($A88=L$1,$A89,"") -> 
A89: Orange | C89: =IF($A89=C$1,$A90,"") ->  | D89: =IF($A89=D$1,$A90,"") -> Pink | E89: =IF($A89=E$1,$A90,"") ->  | F89: =IF($A89=F$1,$A90,"") ->  | G89: =IF($A89=G$1,$A90,"") ->  | H89: =IF($A89=H$1,$A90,"") ->  | I89: =IF($A89=I$1,$A90,"") ->  | J89: =IF($A89=J$1,$A90,"") ->  | K89: =IF($A89=K$1,$A90,"") ->  | L89: =IF($A89=L$1,$A90,"") -> 
A90: Pink | C90: =IF($A90=C$1,$A91,"") ->  | D90: =IF($A90=D$1,$A91,"") ->  | E90: =IF($A90=E$1,$A91,"") ->  | F90: =IF($A90=F$1,$A91,"") ->  | G90: =IF($A90=G$1,$A91,"") ->  | H90: =IF($A90=H$1,$A91,"") ->  | I90: =IF($A90=I$1,$A91,"") ->  | J90: =IF($A90=J$1,$A91,"") -> Purple | K90: =IF($A90=K$1,$A91,"") ->  | L90: =IF($A90=L$1,$A91,"") -> 
A91: Purple | C91: =IF($A91=C$1,$A92,"") ->  | D91: =IF($A91=D$1,$A92,"") ->  | E91: =IF($A91=E$1,$A92,"") ->  | F91: =IF($A91=F$1,$A92,"") ->  | G91: =IF($A91=G$1,$A92,"") ->  | H91: =IF($A91=H$1,$A92,"") ->  | I91: =IF($A91=I$1,$A92,"") ->  | J91: =IF($A91=J$1,$A92,"") ->  | K91: =IF($A91=K$1,$A92,"") -> Cyan | L91: =IF($A91=L$1,$A92,"") -> 
A92: Cyan | C92: =IF($A92=C$1,$A93,"") ->  | D92: =IF($A92=D$1,$A93,"") ->  | E92: =IF($A92=E$1,$A93,"") ->  | F92: =IF($A92=F$1,$A93,"") -> Orange | G92: =IF($A92=G$1,$A93,"") ->  | H92: =IF($A92=H$1,$A93,"") ->  | I92: =IF($A92=I$1,$A93,"") ->  | J92: =IF($A92=J$1,$A93,"") ->  | K92: =IF($A92=K$1,$A93,"") ->  | L92: =IF($A92=L$1,$A93,"") -> 
A93: Orange | C93: =IF($A93=C$1,$A94,"") ->  | D93: =IF($A93=D$1,$A94,"") -> Red | E93: =IF($A93=E$1,$A94,"") ->  | F93: =IF($A93=F$1,$A94,"") ->  | G93: =IF($A93=G$1,$A94,"") ->  | H93: =IF($A93=H$1,$A94,"") ->  | I93: =IF($A93=I$1,$A94,"") ->  | J93: =IF($A93=J$1,$A94,"") ->  | K93: =IF($A93=K$1,$A94,"") ->  | L93: =IF($A93=L$1,$A94,"") -> 
A94: Red | C94: =IF($A94=C$1,$A95,"") ->  | D94: =IF($A94=D$1,$A95,"") ->  | E94: =IF($A94=E$1,$A95,"") ->  | F94: =IF($A94=F$1,$A95,"") ->  | G94: =IF($A94=G$1,$A95,"") ->  | H94: =IF($A94=H$1,$A95,"") -> Green | I94: =IF($A94=I$1,$A95,"") ->  | J94: =IF($A94=J$1,$A95,"") ->  | K94: =IF($A94=K$1,$A95,"") ->  | L94: =IF($A94=L$1,$A95,"") -> 
A95: Green | C95: =IF($A95=C$1,$A96,"") ->  | D95: =IF($A95=D$1,$A96,"") ->  | E95: =IF($A95=E$1,$A96,"") ->  | F95: =IF($A95=F$1,$A96,"") ->  | G95: =IF($A95=G$1,$A96,"") ->  | H95: =IF($A95=H$1,$A96,"") ->  | I95: =IF($A95=I$1,$A96,"") ->  | J95: =IF($A95=J$1,$A96,"") ->  | K95: =IF($A95=K$1,$A96,"") ->  | L95: =IF($A95=L$1,$A96,"") -> Red
A96: Red | C96: =IF($A96=C$1,$A97,"") ->  | D96: =IF($A96=D$1,$A97,"") ->  | E96: =IF($A96=E$1,$A97,"") ->  | F96: =IF($A96=F$1,$A97,"") ->  | G96: =IF($A96=G$1,$A97,"") ->  | H96: =IF($A96=H$1,$A97,"") -> Cyan | I96: =IF($A96=I$1,$A97,"") ->  | J96: =IF($A96=J$1,$A97,"") ->  | K96: =IF($A96=K$1,$A97,"") ->  | L96: =IF($A96=L$1,$A97,"") -> 
A97: Cyan | C97: =IF($A97=C$1,$A98,"") ->  | D97: =IF($A97=D$1,$A98,"") ->  | E97: =IF($A97=E$1,$A98,"") ->  | F97: =IF($A97=F$1,$A98,"") -> Orange | G97: =IF($A97=G$1,$A98,"") ->  | H97: =IF($A97=H$1,$A98,"") ->  | I97: =IF($A97=I$1,$A98,"") ->  | J97: =IF($A97=J$1,$A98,"") ->  | K97: =IF($A97=K$1,$A98,"") ->  | L97: =IF($A97=L$1,$A98,"") -> 
A98: Orange | C98: =IF($A98=C$1,$A99,"") ->  | D98: =IF($A98=D$1,$A99,"") -> Cyan | E98: =IF($A98=E$1,$A99,"") ->  | F98: =IF($A98=F$1,$A99,"") ->  | G98: =IF($A98=G$1,$A99,"") ->  | H98: =IF($A98=H$1,$A99,"") ->  | I98: =IF($A98=I$1,$A99,"") ->  | J98: =IF($A98=J$1,$A99,"") ->  | K98: =IF($A98=K$1,$A99,"") ->  | L98: =IF($A98=L$1,$A99,"") -> 
A99: Cyan | C99: =IF($A99=C$1,$A100,"") ->  | D99: =IF($A99=D$1,$A100,"") ->  | E99: =IF($A99=E$1,$A100,"") ->  | F99: =IF($A99=F$1,$A100,"") -> White | G99: =IF($A99=G$1,$A100,"") ->  | H99: =IF($A99=H$1,$A100,"") ->  | I99: =IF($A99=I$1,$A100,"") ->  | J99: =IF($A99=J$1,$A100,"") ->  | K99: =IF($A99=K$1,$A100,"") ->  | L99: =IF($A99=L$1,$A100,"") -> 
A100: White | C100: =IF($A100=C$1,$A101,"") ->  | D100: =IF($A100=D$1,$A101,"") ->  | E100: =IF($A100=E$1,$A101,"") ->  | F100: =IF($A100=F$1,$A101,"") ->  | G100: =IF($A100=G$1,$A101,"") -> Red | H100: =IF($A100=H$1,$A101,"") ->  | I100: =IF($A100=I$1,$A101,"") ->  | J100: =IF($A100=J$1,$A101,"") ->  | K100: =IF($A100=K$1,$A101,"") ->  | L100: =IF($A100=L$1,$A101,"") -> 
A101: Red | C101: =IF($A101=C$1,$A102,"") ->  | D101: =IF($A101=D$1,$A102,"") ->  | E101: =IF($A101=E$1,$A102,"") ->  | F101: =IF($A101=F$1,$A102,"") ->  | G101: =IF($A101=G$1,$A102,"") ->  | H101: =IF($A101=H$1,$A102,"") -> Cyan | I101: =IF($A101=I$1,$A102,"") ->  | J101: =IF($A101=J$1,$A102,"") ->  | K101: =IF($A101=K$1,$A102,"") ->  | L101: =IF($A101=L$1,$A102,"") -> 
A102: Cyan | C102: =IF($A102=C$1,$A103,"") ->  | D102: =IF($A102=D$1,$A103,"") ->  | E102: =IF($A102=E$1,$A103,"") ->  | F102: =IF($A102=F$1,$A103,"") -> Cyan | G102: =IF($A102=G$1,$A103,"") ->  | H102: =IF($A102=H$1,$A103,"") ->  | I102: =IF($A102=I$1,$A103,"") ->  | J102: =IF($A102=J$1,$A103,"") ->  | K102: =IF($A102=K$1,$A103,"") ->  | L102: =IF($A102=L$1,$A103,"") -> 
A103: Cyan | C103: =IF($A103=C$1,$A104,"") ->  | D103: =IF($A103=D$1,$A104,"") ->  | E103: =IF($A103=E$1,$A104,"") ->  | F103: =IF($A103=F$1,$A104,"") -> Blue | G103: =IF($A103=G$1,$A104,"") ->  | H103: =IF($A103=H$1,$A104,"") ->  | I103: =IF($A103=I$1,$A104,"") ->  | J103: =IF($A103=J$1,$A104,"") ->  | K103: =IF($A103=K$1,$A104,"") ->  | L103: =IF($A103=L$1,$A104,"") -> 
A104: Blue | C104: =IF($A104=C$1,$A105,"") ->  | D104: =IF($A104=D$1,$A105,"") ->  | E104: =IF($A104=E$1,$A105,"") -> Black | F104: =IF($A104=F$1,$A105,"") ->  | G104: =IF($A104=G$1,$A105,"") ->  | H104: =IF($A104=H$1,$A105,"") ->  | I104: =IF($A104=I$1,$A105,"") ->  | J104: =IF($A104=J$1,$A105,"") ->  | K104: =IF($A104=K$1,$A105,"") ->  | L104: =IF($A104=L$1,$A105,"") -> 
A105: Black | C105: =IF($A105=C$1,$A106,"") ->  | D105: =IF($A105=D$1,$A106,"") ->  | E105: =IF($A105=E$1,$A106,"") ->  | F105: =IF($A105=F$1,$A106,"") ->  | G105: =IF($A105=G$1,$A106,"") ->  | H105: =IF($A105=H$1,$A106,"") ->  | I105: =IF($A105=I$1,$A106,"") -> Red | J105: =IF($A105=J$1,$A106,"") ->  | K105: =IF($A105=K$1,$A106,"") ->  | L105: =IF($A105=L$1,$A106,"") -> 
A106: Red | C106: =IF($A106=C$1,$A107,"") ->  | D106: =IF($A106=D$1,$A107,"") ->  | E106: =IF($A106=E$1,$A107,"") ->  | F106: =IF($A106=F$1,$A107,"") ->  | G106: =IF($A106=G$1,$A107,"") ->  | H106: =IF($A106=H$1,$A107,"") -> Cyan | I106: =IF($A106=I$1,$A107,"") ->  | J106: =IF($A106=J$1,$A107,"") ->  | K106: =IF($A106=K$1,$A107,"") ->  | L106: =IF($A106=L$1,$A107,"") -> 
A107: Cyan | C107: =IF($A107=C$1,$A108,"") ->  | D107: =IF($A107=D$1,$A108,"") ->  | E107: =IF($A107=E$1,$A108,"") ->  | F107: =IF($A107=F$1,$A108,"") -> Purple | G107: =IF($A107=G$1,$A108,"") ->  | H107: =IF($A107=H$1,$A108,"") ->  | I107: =IF($A107=I$1,$A108,"") ->  | J107: =IF($A107=J$1,$A108,"") ->  | K107: =IF($A107=K$1,$A108,"") ->  | L107: =IF($A107=L$1,$A108,"") -> 
A108: Purple | C108: =IF($A108=C$1,$A109,"") ->  | D108: =IF($A108=D$1,$A109,"") ->  | E108: =IF($A108=E$1,$A109,"") ->  | F108: =IF($A108=F$1,$A109,"") ->  | G108: =IF($A108=G$1,$A109,"") ->  | H108: =IF($A108=H$1,$A109,"") ->  | I108: =IF($A108=I$1,$A109,"") ->  | J108: =IF($A108=J$1,$A109,"") ->  | K108: =IF($A108=K$1,$A109,"") -> Yellow | L108: =IF($A108=L$1,$A109,"") -> 
A109: Yellow | C109: =IF($A109=C$1,$A110,"") -> Pink | D109: =IF($A109=D$1,$A110,"") ->  | E109: =IF($A109=E$1,$A110,"") ->  | F109: =IF($A109=F$1,$A110,"") ->  | G109: =IF($A109=G$1,$A110,"") ->  | H109: =IF($A109=H$1,$A110,"") ->  | I109: =IF($A109=I$1,$A110,"") ->  | J109: =IF($A109=J$1,$A110,"") ->  | K109: =IF($A109=K$1,$A110,"") ->  | L109: =IF($A109=L$1,$A110,"") -> 
A110: Pink | C110: =IF($A110=C$1,$A111,"") ->  | D110: =IF($A110=D$1,$A111,"") ->  | E110: =IF($A110=E$1,$A111,"") ->  | F110: =IF($A110=F$1,$A111,"") ->  | G110: =IF($A110=G$1,$A111,"") ->  | H110: =IF($A110=H$1,$A111,"") ->  | I110: =IF($A110=I$1,$A111,"") ->  | J110: =IF($A110=J$1,$A111,"") -> Red | K110: =IF($A110=K$1,$A111,"") ->  | L110: =IF($A110=L$1,$A111,"") -> 
A111: Red | C111: =IF($A111=C$1,$A112,"") ->  | D111: =IF($A111=D$1,$A112,"") ->  | E111: =IF($A111=E$1,$A112,"") ->  | F111: =IF($A111=F$1,$A112,"") ->  | G111: =IF($A111=G$1,$A112,"") ->  | H111: =IF($A111=H$1,$A112,"") -> Pink | I111: =IF($A111=I$1,$A112,"") ->  | J111: =IF($A111=J$1,$A112,"") ->  | K111: =IF($A111=K$1,$A112,"") ->  | L111: =IF($A111=L$1,$A112,"") -> 
A112: Pink | C112: =IF($A112=C$1,$A113,"") ->  | D112: =IF($A112=D$1,$A113,"") ->  | E112: =IF($A112=E$1,$A113,"") ->  | F112: =IF($A112=F$1,$A113,"") ->  | G112: =IF($A112=G$1,$A113,"") ->  | H112: =IF($A112=H$1,$A113,"") ->  | I112: =IF($A112=I$1,$A113,"") ->  | J112: =IF($A112=J$1,$A113,"") -> Blue | K112: =IF($A112=K$1,$A113,"") ->  | L112: =IF($A112=L$1,$A113,"") -> 
A113: Blue | C113: =IF($A113=C$1,$A114,"") ->  | D113: =IF($A113=D$1,$A114,"") ->  | E113: =IF($A113=E$1,$A114,"") -> Blue | F113: =IF($A113=F$1,$A114,"") ->  | G113: =IF($A113=G$1,$A114,"") ->  | H113: =IF($A113=H$1,$A114,"") ->  | I113: =IF($A113=I$1,$A114,"") ->  | J113: =IF($A113=J$1,$A114,"") ->  | K113: =IF($A113=K$1,$A114,"") ->  | L113: =IF($A113=L$1,$A114,"") -> 
A114: Blue | C114: =IF($A114=C$1,$A115,"") ->  | D114: =IF($A114=D$1,$A115,"") ->  | E114: =IF($A114=E$1,$A115,"") -> Cyan | F114: =IF($A114=F$1,$A115,"") ->  | G114: =IF($A114=G$1,$A115,"") ->  | H114: =IF($A114=H$1,$A115,"") ->  | I114: =IF($A114=I$1,$A115,"") ->  | J114: =IF($A114=J$1,$A115,"") ->  | K114: =IF($A114=K$1,$A115,"") ->  | L114: =IF($A114=L$1,$A115,"") -> 
A115: Cyan | C115: =IF($A115=C$1,$A116,"") ->  | D115: =IF($A115=D$1,$A116,"") ->  | E115: =IF($A115=E$1,$A116,"") ->  | F115: =IF($A115=F$1,$A116,"") -> Green | G115: =IF($A115=G$1,$A116,"") ->  | H115: =IF($A115=H$1,$A116,"") ->  | I115: =IF($A115=I$1,$A116,"") ->  | J115: =IF($A115=J$1,$A116,"") ->  | K115: =IF($A115=K$1,$A116,"") ->  | L115: =IF($A115=L$1,$A116,"") -> 
A116: Green | C116: =IF($A116=C$1,$A117,"") ->  | D116: =IF($A116=D$1,$A117,"") ->  | E116: =IF($A116=E$1,$A117,"") ->  | F116: =IF($A116=F$1,$A117,"") ->  | G116: =IF($A116=G$1,$A117,"") ->  | H116: =IF($A116=H$1,$A117,"") ->  | I116: =IF($A116=I$1,$A117,"") ->  | J116: =IF($A116=J$1,$A117,"") ->  | K116: =IF($A116=K$1,$A117,"") ->  | L116: =IF($A116=L$1,$A117,"") -> Cyan
A117: Cyan | C117: =IF($A117=C$1,$A118,"") ->  | D117: =IF($A117=D$1,$A118,"") ->  | E117: =IF($A117=E$1,$A118,"") ->  | F117: =IF($A117=F$1,$A118,"") -> Yellow | G117: =IF($A117=G$1,$A118,"") ->  | H117: =IF($A117=H$1,$A118,"") ->  | I117: =IF($A117=I$1,$A118,"") ->  | J117: =IF($A117=J$1,$A118,"") ->  | K117: =IF($A117=K$1,$A118,"") ->  | L117: =IF($A117=L$1,$A118,"") -> 
A118: Yellow | C118: =IF($A118=C$1,$A119,"") -> Black | D118: =IF($A118=D$1,$A119,"") ->  | E118: =IF($A118=E$1,$A119,"") ->  | F118: =IF($A118=F$1,$A119,"") ->  | G118: =IF($A118=G$1,$A119,"") ->  | H118: =IF($A118=H$1,$A119,"") ->  | I118: =IF($A118=I$1,$A119,"") ->  | J118: =IF($A118=J$1,$A119,"") ->  | K118: =IF($A118=K$1,$A119,"") ->  | L118: =IF($A118=L$1,$A119,"") -> 
A119: Black | C119: =IF($A119=C$1,$A120,"") ->  | D119: =IF($A119=D$1,$A120,"") ->  | E119: =IF($A119=E$1,$A120,"") ->  | F119: =IF($A119=F$1,$A120,"") ->  | G119: =IF($A119=G$1,$A120,"") ->  | H119: =IF($A119=H$1,$A120,"") ->  | I119: =IF($A119=I$1,$A120,"") -> Purple | J119: =IF($A119=J$1,$A120,"") ->  | K119: =IF($A119=K$1,$A120,"") ->  | L119: =IF($A119=L$1,$A120,"") -> 
A120: Purple | C120: =IF($A120=C$1,$A121,"") ->  | D120: =IF($A120=D$1,$A121,"") ->  | E120: =IF($A120=E$1,$A121,"") ->  | F120: =IF($A120=F$1,$A121,"") ->  | G120: =IF($A120=G$1,$A121,"") ->  | H120: =IF($A120=H$1,$A121,"") ->  | I120: =IF($A120=I$1,$A121,"") ->  | J120: =IF($A120=J$1,$A121,"") ->  | K120: =IF($A120=K$1,$A121,"") -> Yellow | L120: =IF($A120=L$1,$A121,"") -> 
A121: Yellow | C121: =IF($A121=C$1,$A122,"") -> Orange | D121: =IF($A121=D$1,$A122,"") ->  | E121: =IF($A121=E$1,$A122,"") ->  | F121: =IF($A121=F$1,$A122,"") ->  | G121: =IF($A121=G$1,$A122,"") ->  | H121: =IF($A121=H$1,$A122,"") ->  | I121: =IF($A121=I$1,$A122,"") ->  | J121: =IF($A121=J$1,$A122,"") ->  | K121: =IF($A121=K$1,$A122,"") ->  | L121: =IF($A121=L$1,$A122,"") -> 
A122: Orange | C122: =IF($A122=C$1,$A123,"") ->  | D122: =IF($A122=D$1,$A123,"") -> Pink | E122: =IF($A122=E$1,$A123,"") ->  | F122: =IF($A122=F$1,$A123,"") ->  | G122: =IF($A122=G$1,$A123,"") ->  | H122: =IF($A122=H$1,$A123,"") ->  | I122: =IF($A122=I$1,$A123,"") ->  | J122: =IF($A122=J$1,$A123,"") ->  | K122: =IF($A122=K$1,$A123,"") ->  | L122: =IF($A122=L$1,$A123,"") -> 
A123: Pink | C123: =IF($A123=C$1,$A124,"") ->  | D123: =IF($A123=D$1,$A124,"") ->  | E123: =IF($A123=E$1,$A124,"") ->  | F123: =IF($A123=F$1,$A124,"") ->  | G123: =IF($A123=G$1,$A124,"") ->  | H123: =IF($A123=H$1,$A124,"") ->  | I123: =IF($A123=I$1,$A124,"") ->  | J123: =IF($A123=J$1,$A124,"") -> Green | K123: =IF($A123=K$1,$A124,"") ->  | L123: =IF($A123=L$1,$A124,"") -> 
A124: Green | C124: =IF($A124=C$1,$A125,"") ->  | D124: =IF($A124=D$1,$A125,"") ->  | E124: =IF($A124=E$1,$A125,"") ->  | F124: =IF($A124=F$1,$A125,"") ->  | G124: =IF($A124=G$1,$A125,"") ->  | H124: =IF($A124=H$1,$A125,"") ->  | I124: =IF($A124=I$1,$A125,"") ->  | J124: =IF($A124=J$1,$A125,"") ->  | K124: =IF($A124=K$1,$A125,"") ->  | L124: =IF($A124=L$1,$A125,"") -> Blue
A125: Blue | C125: =IF($A125=C$1,$A126,"") ->  | D125: =IF($A125=D$1,$A126,"") ->  | E125: =IF($A125=E$1,$A126,"") -> Black | F125: =IF($A125=F$1,$A126,"") ->  | G125: =IF($A125=G$1,$A126,"") ->  | H125: =IF($A125=H$1,$A126,"") ->  | I125: =IF($A125=I$1,$A126,"") ->  | J125: =IF($A125=J$1,$A126,"") ->  | K125: =IF($A125=K$1,$A126,"") ->  | L125: =IF($A125=L$1,$A126,"") -> 
A126: Black | C126: =IF($A126=C$1,$A127,"") ->  | D126: =IF($A126=D$1,$A127,"") ->  | E126: =IF($A126=E$1,$A127,"") ->  | F126: =IF($A126=F$1,$A127,"") ->  | G126: =IF($A126=G$1,$A127,"") ->  | H126: =IF($A126=H$1,$A127,"") ->  | I126: =IF($A126=I$1,$A127,"") -> Orange | J126: =IF($A126=J$1,$A127,"") ->  | K126: =IF($A126=K$1,$A127,"") ->  | L126: =IF($A126=L$1,$A127,"") -> 
A127: Orange | C127: =IF($A127=C$1,$A128,"") ->  | D127: =IF($A127=D$1,$A128,"") -> Pink | E127: =IF($A127=E$1,$A128,"") ->  | F127: =IF($A127=F$1,$A128,"") ->  | G127: =IF($A127=G$1,$A128,"") ->  | H127: =IF($A127=H$1,$A128,"") ->  | I127: =IF($A127=I$1,$A128,"") ->  | J127: =IF($A127=J$1,$A128,"") ->  | K127: =IF($A127=K$1,$A128,"") ->  | L127: =IF($A127=L$1,$A128,"") -> 
A128: Pink | C128: =IF($A128=C$1,$A129,"") ->  | D128: =IF($A128=D$1,$A129,"") ->  | E128: =IF($A128=E$1,$A129,"") ->  | F128: =IF($A128=F$1,$A129,"") ->  | G128: =IF($A128=G$1,$A129,"") ->  | H128: =IF($A128=H$1,$A129,"") ->  | I128: =IF($A128=I$1,$A129,"") ->  | J128: =IF($A128=J$1,$A129,"") -> Red | K128: =IF($A128=K$1,$A129,"") ->  | L128: =IF($A128=L$1,$A129,"") -> 
A129: Red | C129: =IF($A129=C$1,$A130,"") ->  | D129: =IF($A129=D$1,$A130,"") ->  | E129: =IF($A129=E$1,$A130,"") ->  | F129: =IF($A129=F$1,$A130,"") ->  | G129: =IF($A129=G$1,$A130,"") ->  | H129: =IF($A129=H$1,$A130,"") -> Yellow | I129: =IF($A129=I$1,$A130,"") ->  | J129: =IF($A129=J$1,$A130,"") ->  | K129: =IF($A129=K$1,$A130,"") ->  | L129: =IF($A129=L$1,$A130,"") -> 
A130: Yellow | C130: =IF($A130=C$1,$A131,"") -> Pink | D130: =IF($A130=D$1,$A131,"") ->  | E130: =IF($A130=E$1,$A131,"") ->  | F130: =IF($A130=F$1,$A131,"") ->  | G130: =IF($A130=G$1,$A131,"") ->  | H130: =IF($A130=H$1,$A131,"") ->  | I130: =IF($A130=I$1,$A131,"") ->  | J130: =IF($A130=J$1,$A131,"") ->  | K130: =IF($A130=K$1,$A131,"") ->  | L130: =IF($A130=L$1,$A131,"") -> 
A131: Pink | C131: =IF($A131=C$1,$A132,"") ->  | D131: =IF($A131=D$1,$A132,"") ->  | E131: =IF($A131=E$1,$A132,"") ->  | F131: =IF($A131=F$1,$A132,"") ->  | G131: =IF($A131=G$1,$A132,"") ->  | H131: =IF($A131=H$1,$A132,"") ->  | I131: =IF($A131=I$1,$A132,"") ->  | J131: =IF($A131=J$1,$A132,"") -> Green | K131: =IF($A131=K$1,$A132,"") ->  | L131: =IF($A131=L$1,$A132,"") -> 
A132: Green | C132: =IF($A132=C$1,$A133,"") ->  | D132: =IF($A132=D$1,$A133,"") ->  | E132: =IF($A132=E$1,$A133,"") ->  | F132: =IF($A132=F$1,$A133,"") ->  | G132: =IF($A132=G$1,$A133,"") ->  | H132: =IF($A132=H$1,$A133,"") ->  | I132: =IF($A132=I$1,$A133,"") ->  | J132: =IF($A132=J$1,$A133,"") ->  | K132: =IF($A132=K$1,$A133,"") ->  | L132: =IF($A132=L$1,$A133,"") -> Purple
A133: Purple | C133: =IF($A133=C$1,$A134,"") ->  | D133: =IF($A133=D$1,$A134,"") ->  | E133: =IF($A133=E$1,$A134,"") ->  | F133: =IF($A133=F$1,$A134,"") ->  | G133: =IF($A133=G$1,$A134,"") ->  | H133: =IF($A133=H$1,$A134,"") ->  | I133: =IF($A133=I$1,$A134,"") ->  | J133: =IF($A133=J$1,$A134,"") ->  | K133: =IF($A133=K$1,$A134,"") -> Purple | L133: =IF($A133=L$1,$A134,"") -> 
A134: Purple | C134: =IF($A134=C$1,$A135,"") ->  | D134: =IF($A134=D$1,$A135,"") ->  | E134: =IF($A134=E$1,$A135,"") ->  | F134: =IF($A134=F$1,$A135,"") ->  | G134: =IF($A134=G$1,$A135,"") ->  | H134: =IF($A134=H$1,$A135,"") ->  | I134: =IF($A134=I$1,$A135,"") ->  | J134: =IF($A134=J$1,$A135,"") ->  | K134: =IF($A134=K$1,$A135,"") -> White | L134: =IF($A134=L$1,$A135,"") -> 
A135: White | C135: =IF($A135=C$1,$A136,"") ->  | D135: =IF($A135=D$1,$A136,"") ->  | E135: =IF($A135=E$1,$A136,"") ->  | F135: =IF($A135=F$1,$A136,"") ->  | G135: =IF($A135=G$1,$A136,"") -> Purple | H135: =IF($A135=H$1,$A136,"") ->  | I135: =IF($A135=I$1,$A136,"") ->  | J135: =IF($A135=J$1,$A136,"") ->  | K135: =IF($A135=K$1,$A136,"") ->  | L135: =IF($A135=L$1,$A136,"") -> 
A136: Purple | C136: =IF($A136=C$1,$A137,"") ->  | D136: =IF($A136=D$1,$A137,"") ->  | E136: =IF($A136=E$1,$A137,"") ->  | F136: =IF($A136=F$1,$A137,"") ->  | G136: =IF($A136=G$1,$A137,"") ->  | H136: =IF($A136=H$1,$A137,"") ->  | I136: =IF($A136=I$1,$A137,"") ->  | J136: =IF($A136=J$1,$A137,"") ->  | K136: =IF($A136=K$1,$A137,"") -> Purple | L136: =IF($A136=L$1,$A137,"") -> 
A137: Purple | C137: =IF($A137=C$1,$A138,"") ->  | D137: =IF($A137=D$1,$A138,"") ->  | E137: =IF($A137=E$1,$A138,"") ->  | F137: =IF($A137=F$1,$A138,"") ->  | G137: =IF($A137=G$1,$A138,"") ->  | H137: =IF($A137=H$1,$A138,"") ->  | I137: =IF($A137=I$1,$A138,"") ->  | J137: =IF($A137=J$1,$A138,"") ->  | K137: =IF($A137=K$1,$A138,"") -> Orange | L137: =IF($A137=L$1,$A138,"") -> 
A138: Orange | C138: =IF($A138=C$1,$A139,"") ->  | D138: =IF($A138=D$1,$A139,"") -> Green | E138: =IF($A138=E$1,$A139,"") ->  | F138: =IF($A138=F$1,$A139,"") ->  | G138: =IF($A138=G$1,$A139,"") ->  | H138: =IF($A138=H$1,$A139,"") ->  | I138: =IF($A138=I$1,$A139,"") ->  | J138: =IF($A138=J$1,$A139,"") ->  | K138: =IF($A138=K$1,$A139,"") ->  | L138: =IF($A138=L$1,$A139,"") -> 
A139: Green | C139: =IF($A139=C$1,$A140,"") ->  | D139: =IF($A139=D$1,$A140,"") ->  | E139: =IF($A139=E$1,$A140,"") ->  | F139: =IF($A139=F$1,$A140,"") ->  | G139: =IF($A139=G$1,$A140,"") ->  | H139: =IF($A139=H$1,$A140,"") ->  | I139: =IF($A139=I$1,$A140,"") ->  | J139: =IF($A139=J$1,$A140,"") ->  | K139: =IF($A139=K$1,$A140,"") ->  | L139: =IF($A139=L$1,$A140,"") -> Yellow
A140: Yellow | C140: =IF($A140=C$1,$A141,"") -> Orange | D140: =IF($A140=D$1,$A141,"") ->  | E140: =IF($A140=E$1,$A141,"") ->  | F140: =IF($A140=F$1,$A141,"") ->  | G140: =IF($A140=G$1,$A141,"") ->  | H140: =IF($A140=H$1,$A141,"") ->  | I140: =IF($A140=I$1,$A141,"") ->  | J140: =IF($A140=J$1,$A141,"") ->  | K140: =IF($A140=K$1,$A141,"") ->  | L140: =IF($A140=L$1,$A141,"") -> 
A141: Orange | C141: =IF($A141=C$1,$A142,"") ->  | D141: =IF($A141=D$1,$A142,"") -> Purple | E141: =IF($A141=E$1,$A142,"") ->  | F141: =IF($A141=F$1,$A142,"") ->  | G141: =IF($A141=G$1,$A142,"") ->  | H141: =IF($A141=H$1,$A142,"") ->  | I141: =IF($A141=I$1,$A142,"") ->  | J141: =IF($A141=J$1,$A142,"") ->  | K141: =IF($A141=K$1,$A142,"") ->  | L141: =IF($A141=L$1,$A142,"") -> 
A142: Purple | C142: =IF($A142=C$1,$A143,"") ->  | D142: =IF($A142=D$1,$A143,"") ->  | E142: =IF($A142=E$1,$A143,"") ->  | F142: =IF($A142=F$1,$A143,"") ->  | G142: =IF($A142=G$1,$A143,"") ->  | H142: =IF($A142=H$1,$A143,"") ->  | I142: =IF($A142=I$1,$A143,"") ->  | J142: =IF($A142=J$1,$A143,"") ->  | K142: =IF($A142=K$1,$A143,"") -> Purple | L142: =IF($A142=L$1,$A143,"") -> 
A143: Purple | C143: =IF($A143=C$1,$A144,"") ->  | D143: =IF($A143=D$1,$A144,"") ->  | E143: =IF($A143=E$1,$A144,"") ->  | F143: =IF($A143=F$1,$A144,"") ->  | G143: =IF($A143=G$1,$A144,"") ->  | H143: =IF($A143=H$1,$A144,"") ->  | I143: =IF($A143=I$1,$A144,"") ->  | J143: =IF($A143=J$1,$A144,"") ->  | K143: =IF($A143=K$1,$A144,"") -> Pink | L143: =IF($A143=L$1,$A144,"") -> 
A144: Pink | C144: =IF($A144=C$1,$A145,"") ->  | D144: =IF($A144=D$1,$A145,"") ->  | E144: =IF($A144=E$1,$A145,"") ->  | F144: =IF($A144=F$1,$A145,"") ->  | G144: =IF($A144=G$1,$A145,"") ->  | H144: =IF($A144=H$1,$A145,"") ->  | I144: =IF($A144=I$1,$A145,"") ->  | J144: =IF($A144=J$1,$A145,"") -> Yellow | K144: =IF($A144=K$1,$A145,"") ->  | L144: =IF($A144=L$1,$A145,"") -> 
A145: Yellow | C145: =IF($A145=C$1,$A146,"") -> Cyan | D145: =IF($A145=D$1,$A146,"") ->  | E145: =IF($A145=E$1,$A146,"") ->  | F145: =IF($A145=F$1,$A146,"") ->  | G145: =IF($A145=G$1,$A146,"") ->  | H145: =IF($A145=H$1,$A146,"") ->  | I145: =IF($A145=I$1,$A146,"") ->  | J145: =IF($A145=J$1,$A146,"") ->  | K145: =IF($A145=K$1,$A146,"") ->  | L145: =IF($A145=L$1,$A146,"") -> 
A146: Cyan | C146: =IF($A146=C$1,$A147,"") ->  | D146: =IF($A146=D$1,$A147,"") ->  | E146: =IF($A146=E$1,$A147,"") ->  | F146: =IF($A146=F$1,$A147,"") -> White | G146: =IF($A146=G$1,$A147,"") ->  | H146: =IF($A146=H$1,$A147,"") ->  | I146: =IF($A146=I$1,$A147,"") ->  | J146: =IF($A146=J$1,$A147,"") ->  | K146: =IF($A146=K$1,$A147,"") ->  | L146: =IF($A146=L$1,$A147,"") -> 
A147: White | C147: =IF($A147=C$1,$A148,"") ->  | D147: =IF($A147=D$1,$A148,"") ->  | E147: =IF($A147=E$1,$A148,"") ->  | F147: =IF($A147=F$1,$A148,"") ->  | G147: =IF($A147=G$1,$A148,"") -> Blue | H147: =IF($A147=H$1,$A148,"") ->  | I147: =IF($A147=I$1,$A148,"") ->  | J147: =IF($A147=J$1,$A148,"") ->  | K147: =IF($A147=K$1,$A148,"") ->  | L147: =IF($A147=L$1,$A148,"") -> 
A148: Blue | C148: =IF($A148=C$1,$A149,"") ->  | D148: =IF($A148=D$1,$A149,"") ->  | E148: =IF($A148=E$1,$A149,"") -> Black | F148: =IF($A148=F$1,$A149,"") ->  | G148: =IF($A148=G$1,$A149,"") ->  | H148: =IF($A148=H$1,$A149,"") ->  | I148: =IF($A148=I$1,$A149,"") ->  | J148: =IF($A148=J$1,$A149,"") ->  | K148: =IF($A148=K$1,$A149,"") ->  | L148: =IF($A148=L$1,$A149,"") -> 
A149: Black | C149: =IF($A149=C$1,$A150,"") ->  | D149: =IF($A149=D$1,$A150,"") ->  | E149: =IF($A149=E$1,$A150,"") ->  | F149: =IF($A149=F$1,$A150,"") ->  | G149: =IF($A149=G$1,$A150,"") ->  | H149: =IF($A149=H$1,$A150,"") ->  | I149: =IF($A149=I$1,$A150,"") -> Blue | J149: =IF($A149=J$1,$A150,"") ->  | K149: =IF($A149=K$1,$A150,"") ->  | L149: =IF($A149=L$1,$A150,"") -> 
A150: Blue | C150: =IF($A150=C$1,$A151,"") ->  | D150: =IF($A150=D$1,$A151,"") ->  | E150: =IF($A150=E$1,$A151,"") -> Pink | F150: =IF($A150=F$1,$A151,"") ->  | G150: =IF($A150=G$1,$A151,"") ->  | H150: =IF($A150=H$1,$A151,"") ->  | I150: =IF($A150=I$1,$A151,"") ->  | J150: =IF($A150=J$1,$A151,"") ->  | K150: =IF($A150=K$1,$A151,"") ->  | L150: =IF($A150=L$1,$A151,"") -> 
A151: Pink | C151: =IF($A151=C$1,$A152,"") ->  | D151: =IF($A151=D$1,$A152,"") ->  | E151: =IF($A151=E$1,$A152,"") ->  | F151: =IF($A151=F$1,$A152,"") ->  | G151: =IF($A151=G$1,$A152,"") ->  | H151: =IF($A151=H$1,$A152,"") ->  | I151: =IF($A151=I$1,$A152,"") ->  | J151: =IF($A151=J$1,$A152,"") -> Purple | K151: =IF($A151=K$1,$A152,"") ->  | L151: =IF($A151=L$1,$A152,"") -> 
A152: Purple | C152: =IF($A152=C$1,$A153,"") ->  | D152: =IF($A152=D$1,$A153,"") ->  | E152: =IF($A152=E$1,$A153,"") ->  | F152: =IF($A152=F$1,$A153,"") ->  | G152: =IF($A152=G$1,$A153,"") ->  | H152: =IF($A152=H$1,$A153,"") ->  | I152: =IF($A152=I$1,$A153,"") ->  | J152: =IF($A152=J$1,$A153,"") ->  | K152: =IF($A152=K$1,$A153,"") -> Blue | L152: =IF($A152=L$1,$A153,"") -> 
A153: Blue | C153: =IF($A153=C$1,$A154,"") ->  | D153: =IF($A153=D$1,$A154,"") ->  | E153: =IF($A153=E$1,$A154,"") -> Black | F153: =IF($A153=F$1,$A154,"") ->  | G153: =IF($A153=G$1,$A154,"") ->  | H153: =IF($A153=H$1,$A154,"") ->  | I153: =IF($A153=I$1,$A154,"") ->  | J153: =IF($A153=J$1,$A154,"") ->  | K153: =IF($A153=K$1,$A154,"") ->  | L153: =IF($A153=L$1,$A154,"") -> 
A154: Black | C154: =IF($A154=C$1,$A155,"") ->  | D154: =IF($A154=D$1,$A155,"") ->  | E154: =IF($A154=E$1,$A155,"") ->  | F154: =IF($A154=F$1,$A155,"") ->  | G154: =IF($A154=G$1,$A155,"") ->  | H154: =IF($A154=H$1,$A155,"") ->  | I154: =IF($A154=I$1,$A155,"") -> Yellow | J154: =IF($A154=J$1,$A155,"") ->  | K154: =IF($A154=K$1,$A155,"") ->  | L154: =IF($A154=L$1,$A155,"") -> 
A155: Yellow | C155: =IF($A155=C$1,$A156,"") -> Black | D155: =IF($A155=D$1,$A156,"") ->  | E155: =IF($A155=E$1,$A156,"") ->  | F155: =IF($A155=F$1,$A156,"") ->  | G155: =IF($A155=G$1,$A156,"") ->  | H155: =IF($A155=H$1,$A156,"") ->  | I155: =IF($A155=I$1,$A156,"") ->  | J155: =IF($A155=J$1,$A156,"") ->  | K155: =IF($A155=K$1,$A156,"") ->  | L155: =IF($A155=L$1,$A156,"") -> 
A156: Black | C156: =IF($A156=C$1,$A157,"") ->  | D156: =IF($A156=D$1,$A157,"") ->  | E156: =IF($A156=E$1,$A157,"") ->  | F156: =IF($A156=F$1,$A157,"") ->  | G156: =IF($A156=G$1,$A157,"") ->  | H156: =IF($A156=H$1,$A157,"") ->  | I156: =IF($A156=I$1,$A157,"") -> Orange | J156: =IF($A156=J$1,$A157,"") ->  | K156: =IF($A156=K$1,$A157,"") ->  | L156: =IF($A156=L$1,$A157,"") -> 
A157: Orange | C157: =IF($A157=C$1,$A158,"") ->  | D157: =IF($A157=D$1,$A158,"") -> Orange | E157: =IF($A157=E$1,$A158,"") ->  | F157: =IF($A157=F$1,$A158,"") ->  | G157: =IF($A157=G$1,$A158,"") ->  | H157: =IF($A157=H$1,$A158,"") ->  | I157: =IF($A157=I$1,$A158,"") ->  | J157: =IF($A157=J$1,$A158,"") ->  | K157: =IF($A157=K$1,$A158,"") ->  | L157: =IF($A157=L$1,$A158,"") -> 
A158: Orange | C158: =IF($A158=C$1,$A159,"") ->  | D158: =IF($A158=D$1,$A159,"") -> Green | E158: =IF($A158=E$1,$A159,"") ->  | F158: =IF($A158=F$1,$A159,"") ->  | G158: =IF($A158=G$1,$A159,"") ->  | H158: =IF($A158=H$1,$A159,"") ->  | I158: =IF($A158=I$1,$A159,"") ->  | J158: =IF($A158=J$1,$A159,"") ->  | K158: =IF($A158=K$1,$A159,"") ->  | L158: =IF($A158=L$1,$A159,"") -> 
A159: Green | C159: =IF($A159=C$1,$A160,"") ->  | D159: =IF($A159=D$1,$A160,"") ->  | E159: =IF($A159=E$1,$A160,"") ->  | F159: =IF($A159=F$1,$A160,"") ->  | G159: =IF($A159=G$1,$A160,"") ->  | H159: =IF($A159=H$1,$A160,"") ->  | I159: =IF($A159=I$1,$A160,"") ->  | J159: =IF($A159=J$1,$A160,"") ->  | K159: =IF($A159=K$1,$A160,"") ->  | L159: =IF($A159=L$1,$A160,"") -> White
A160: White | C160: =IF($A160=C$1,$A161,"") ->  | D160: =IF($A160=D$1,$A161,"") ->  | E160: =IF($A160=E$1,$A161,"") ->  | F160: =IF($A160=F$1,$A161,"") ->  | G160: =IF($A160=G$1,$A161,"") -> Black | H160: =IF($A160=H$1,$A161,"") ->  | I160: =IF($A160=I$1,$A161,"") ->  | J160: =IF($A160=J$1,$A161,"") ->  | K160: =IF($A160=K$1,$A161,"") ->  | L160: =IF($A160=L$1,$A161,"") -> 
A161: Black | C161: =IF($A161=C$1,$A162,"") ->  | D161: =IF($A161=D$1,$A162,"") ->  | E161: =IF($A161=E$1,$A162,"") ->  | F161: =IF($A161=F$1,$A162,"") ->  | G161: =IF($A161=G$1,$A162,"") ->  | H161: =IF($A161=H$1,$A162,"") ->  | I161: =IF($A161=I$1,$A162,"") -> Green | J161: =IF($A161=J$1,$A162,"") ->  | K161: =IF($A161=K$1,$A162,"") ->  | L161: =IF($A161=L$1,$A162,"") -> 
A162: Green | C162: =IF($A162=C$1,$A163,"") ->  | D162: =IF($A162=D$1,$A163,"") ->  | E162: =IF($A162=E$1,$A163,"") ->  | F162: =IF($A162=F$1,$A163,"") ->  | G162: =IF($A162=G$1,$A163,"") ->  | H162: =IF($A162=H$1,$A163,"") ->  | I162: =IF($A162=I$1,$A163,"") ->  | J162: =IF($A162=J$1,$A163,"") ->  | K162: =IF($A162=K$1,$A163,"") ->  | L162: =IF($A162=L$1,$A163,"") -> Green
A163: Green | C163: =IF($A163=C$1,$A164,"") ->  | D163: =IF($A163=D$1,$A164,"") ->  | E163: =IF($A163=E$1,$A164,"") ->  | F163: =IF($A163=F$1,$A164,"") ->  | G163: =IF($A163=G$1,$A164,"") ->  | H163: =IF($A163=H$1,$A164,"") ->  | I163: =IF($A163=I$1,$A164,"") ->  | J163: =IF($A163=J$1,$A164,"") ->  | K163: =IF($A163=K$1,$A164,"") ->  | L163: =IF($A163=L$1,$A164,"") -> Pink
A164: Pink | C164: =IF($A164=C$1,$A165,"") ->  | D164: =IF($A164=D$1,$A165,"") ->  | E164: =IF($A164=E$1,$A165,"") ->  | F164: =IF($A164=F$1,$A165,"") ->  | G164: =IF($A164=G$1,$A165,"") ->  | H164: =IF($A164=H$1,$A165,"") ->  | I164: =IF($A164=I$1,$A165,"") ->  | J164: =IF($A164=J$1,$A165,"") -> Orange | K164: =IF($A164=K$1,$A165,"") ->  | L164: =IF($A164=L$1,$A165,"") -> 
A165: Orange | C165: =IF($A165=C$1,$A166,"") ->  | D165: =IF($A165=D$1,$A166,"") -> Orange | E165: =IF($A165=E$1,$A166,"") ->  | F165: =IF($A165=F$1,$A166,"") ->  | G165: =IF($A165=G$1,$A166,"") ->  | H165: =IF($A165=H$1,$A166,"") ->  | I165: =IF($A165=I$1,$A166,"") ->  | J165: =IF($A165=J$1,$A166,"") ->  | K165: =IF($A165=K$1,$A166,"") ->  | L165: =IF($A165=L$1,$A166,"") -> 
A166: Orange | C166: =IF($A166=C$1,$A167,"") ->  | D166: =IF($A166=D$1,$A167,"") -> Yellow | E166: =IF($A166=E$1,$A167,"") ->  | F166: =IF($A166=F$1,$A167,"") ->  | G166: =IF($A166=G$1,$A167,"") ->  | H166: =IF($A166=H$1,$A167,"") ->  | I166: =IF($A166=I$1,$A167,"") ->  | J166: =IF($A166=J$1,$A167,"") ->  | K166: =IF($A166=K$1,$A167,"") ->  | L166: =IF($A166=L$1,$A167,"") -> 
A167: Yellow | C167: =IF($A167=C$1,$A168,"") -> Cyan | D167: =IF($A167=D$1,$A168,"") ->  | E167: =IF($A167=E$1,$A168,"") ->  | F167: =IF($A167=F$1,$A168,"") ->  | G167: =IF($A167=G$1,$A168,"") ->  | H167: =IF($A167=H$1,$A168,"") ->  | I167: =IF($A167=I$1,$A168,"") ->  | J167: =IF($A167=J$1,$A168,"") ->  | K167: =IF($A167=K$1,$A168,"") ->  | L167: =IF($A167=L$1,$A168,"") -> 
A168: Cyan | C168: =IF($A168=C$1,$A169,"") ->  | D168: =IF($A168=D$1,$A169,"") ->  | E168: =IF($A168=E$1,$A169,"") ->  | F168: =IF($A168=F$1,$A169,"") -> Purple | G168: =IF($A168=G$1,$A169,"") ->  | H168: =IF($A168=H$1,$A169,"") ->  | I168: =IF($A168=I$1,$A169,"") ->  | J168: =IF($A168=J$1,$A169,"") ->  | K168: =IF($A168=K$1,$A169,"") ->  | L168: =IF($A168=L$1,$A169,"") -> 
A169: Purple | C169: =IF($A169=C$1,$A170,"") ->  | D169: =IF($A169=D$1,$A170,"") ->  | E169: =IF($A169=E$1,$A170,"") ->  | F169: =IF($A169=F$1,$A170,"") ->  | G169: =IF($A169=G$1,$A170,"") ->  | H169: =IF($A169=H$1,$A170,"") ->  | I169: =IF($A169=I$1,$A170,"") ->  | J169: =IF($A169=J$1,$A170,"") ->  | K169: =IF($A169=K$1,$A170,"") -> Cyan | L169: =IF($A169=L$1,$A170,"") -> 
A170: Cyan | C170: =IF($A170=C$1,$A171,"") ->  | D170: =IF($A170=D$1,$A171,"") ->  | E170: =IF($A170=E$1,$A171,"") ->  | F170: =IF($A170=F$1,$A171,"") -> Cyan | G170: =IF($A170=G$1,$A171,"") ->  | H170: =IF($A170=H$1,$A171,"") ->  | I170: =IF($A170=I$1,$A171,"") ->  | J170: =IF($A170=J$1,$A171,"") ->  | K170: =IF($A170=K$1,$A171,"") ->  | L170: =IF($A170=L$1,$A171,"") -> 
A171: Cyan | C171: =IF($A171=C$1,$A172,"") ->  | D171: =IF($A171=D$1,$A172,"") ->  | E171: =IF($A171=E$1,$A172,"") ->  | F171: =IF($A171=F$1,$A172,"") -> Blue | G171: =IF($A171=G$1,$A172,"") ->  | H171: =IF($A171=H$1,$A172,"") ->  | I171: =IF($A171=I$1,$A172,"") ->  | J171: =IF($A171=J$1,$A172,"") ->  | K171: =IF($A171=K$1,$A172,"") ->  | L171: =IF($A171=L$1,$A172,"") -> 
A172: Blue | C172: =IF($A172=C$1,$A173,"") ->  | D172: =IF($A172=D$1,$A173,"") ->  | E172: =IF($A172=E$1,$A173,"") -> Red | F172: =IF($A172=F$1,$A173,"") ->  | G172: =IF($A172=G$1,$A173,"") ->  | H172: =IF($A172=H$1,$A173,"") ->  | I172: =IF($A172=I$1,$A173,"") ->  | J172: =IF($A172=J$1,$A173,"") ->  | K172: =IF($A172=K$1,$A173,"") ->  | L172: =IF($A172=L$1,$A173,"") -> 
A173: Red | C173: =IF($A173=C$1,$A174,"") ->  | D173: =IF($A173=D$1,$A174,"") ->  | E173: =IF($A173=E$1,$A174,"") ->  | F173: =IF($A173=F$1,$A174,"") ->  | G173: =IF($A173=G$1,$A174,"") ->  | H173: =IF($A173=H$1,$A174,"") -> Purple | I173: =IF($A173=I$1,$A174,"") ->  | J173: =IF($A173=J$1,$A174,"") ->  | K173: =IF($A173=K$1,$A174,"") ->  | L173: =IF($A173=L$1,$A174,"") -> 
A174: Purple | C174: =IF($A174=C$1,$A175,"") ->  | D174: =IF($A174=D$1,$A175,"") ->  | E174: =IF($A174=E$1,$A175,"") ->  | F174: =IF($A174=F$1,$A175,"") ->  | G174: =IF($A174=G$1,$A175,"") ->  | H174: =IF($A174=H$1,$A175,"") ->  | I174: =IF($A174=I$1,$A175,"") ->  | J174: =IF($A174=J$1,$A175,"") ->  | K174: =IF($A174=K$1,$A175,"") -> Yellow | L174: =IF($A174=L$1,$A175,"") -> 
A175: Yellow | C175: =IF($A175=C$1,$A176,"") -> Yellow | D175: =IF($A175=D$1,$A176,"") ->  | E175: =IF($A175=E$1,$A176,"") ->  | F175: =IF($A175=F$1,$A176,"") ->  | G175: =IF($A175=G$1,$A176,"") ->  | H175: =IF($A175=H$1,$A176,"") ->  | I175: =IF($A175=I$1,$A176,"") ->  | J175: =IF($A175=J$1,$A176,"") ->  | K175: =IF($A175=K$1,$A176,"") ->  | L175: =IF($A175=L$1,$A176,"") -> 
A176: Yellow | C176: =IF($A176=C$1,$A177,"") -> Cyan | D176: =IF($A176=D$1,$A177,"") ->  | E176: =IF($A176=E$1,$A177,"") ->  | F176: =IF($A176=F$1,$A177,"") ->  | G176: =IF($A176=G$1,$A177,"") ->  | H176: =IF($A176=H$1,$A177,"") ->  | I176: =IF($A176=I$1,$A177,"") ->  | J176: =IF($A176=J$1,$A177,"") ->  | K176: =IF($A176=K$1,$A177,"") ->  | L176: =IF($A176=L$1,$A177,"") -> 
A177: Cyan | C177: =IF($A177=C$1,$A178,"") ->  | D177: =IF($A177=D$1,$A178,"") ->  | E177: =IF($A177=E$1,$A178,"") ->  | F177: =IF($A177=F$1,$A178,"") -> Orange | G177: =IF($A177=G$1,$A178,"") ->  | H177: =IF($A177=H$1,$A178,"") ->  | I177: =IF($A177=I$1,$A178,"") ->  | J177: =IF($A177=J$1,$A178,"") ->  | K177: =IF($A177=K$1,$A178,"") ->  | L177: =IF($A177=L$1,$A178,"") -> 
A178: Orange | C178: =IF($A178=C$1,$A179,"") ->  | D178: =IF($A178=D$1,$A179,"") -> Red | E178: =IF($A178=E$1,$A179,"") ->  | F178: =IF($A178=F$1,$A179,"") ->  | G178: =IF($A178=G$1,$A179,"") ->  | H178: =IF($A178=H$1,$A179,"") ->  | I178: =IF($A178=I$1,$A179,"") ->  | J178: =IF($A178=J$1,$A179,"") ->  | K178: =IF($A178=K$1,$A179,"") ->  | L178: =IF($A178=L$1,$A179,"") -> 
A179: Red | C179: =IF($A179=C$1,$A180,"") ->  | D179: =IF($A179=D$1,$A180,"") ->  | E179: =IF($A179=E$1,$A180,"") ->  | F179: =IF($A179=F$1,$A180,"") ->  | G179: =IF($A179=G$1,$A180,"") ->  | H179: =IF($A179=H$1,$A180,"") -> Yellow | I179: =IF($A179=I$1,$A180,"") ->  | J179: =IF($A179=J$1,$A180,"") ->  | K179: =IF($A179=K$1,$A180,"") ->  | L179: =IF($A179=L$1,$A180,"") -> 
A180: Yellow | C180: =IF($A180=C$1,$A181,"") -> Red | D180: =IF($A180=D$1,$A181,"") ->  | E180: =IF($A180=E$1,$A181,"") ->  | F180: =IF($A180=F$1,$A181,"") ->  | G180: =IF($A180=G$1,$A181,"") ->  | H180: =IF($A180=H$1,$A181,"") ->  | I180: =IF($A180=I$1,$A181,"") ->  | J180: =IF($A180=J$1,$A181,"") ->  | K180: =IF($A180=K$1,$A181,"") ->  | L180: =IF($A180=L$1,$A181,"") -> 
A181: Red | C181: =IF($A181=C$1,$A182,"") ->  | D181: =IF($A181=D$1,$A182,"") ->  | E181: =IF($A181=E$1,$A182,"") ->  | F181: =IF($A181=F$1,$A182,"") ->  | G181: =IF($A181=G$1,$A182,"") ->  | H181: =IF($A181=H$1,$A182,"") -> Green | I181: =IF($A181=I$1,$A182,"") ->  | J181: =IF($A181=J$1,$A182,"") ->  | K181: =IF($A181=K$1,$A182,"") ->  | L181: =IF($A181=L$1,$A182,"") -> 
A182: Green | C182: =IF($A182=C$1,$A183,"") ->  | D182: =IF($A182=D$1,$A183,"") ->  | E182: =IF($A182=E$1,$A183,"") ->  | F182: =IF($A182=F$1,$A183,"") ->  | G182: =IF($A182=G$1,$A183,"") ->  | H182: =IF($A182=H$1,$A183,"") ->  | I182: =IF($A182=I$1,$A183,"") ->  | J182: =IF($A182=J$1,$A183,"") ->  | K182: =IF($A182=K$1,$A183,"") ->  | L182: =IF($A182=L$1,$A183,"") -> Green
A183: Green | C183: =IF($A183=C$1,$A184,"") ->  | D183: =IF($A183=D$1,$A184,"") ->  | E183: =IF($A183=E$1,$A184,"") ->  | F183: =IF($A183=F$1,$A184,"") ->  | G183: =IF($A183=G$1,$A184,"") ->  | H183: =IF($A183=H$1,$A184,"") ->  | I183: =IF($A183=I$1,$A184,"") ->  | J183: =IF($A183=J$1,$A184,"") ->  | K183: =IF($A183=K$1,$A184,"") ->  | L183: =IF($A183=L$1,$A184,"") -> Purple
A184: Purple | C184: =IF($A184=C$1,$A185,"") ->  | D184: =IF($A184=D$1,$A185,"") ->  | E184: =IF($A184=E$1,$A185,"") ->  | F184: =IF($A184=F$1,$A185,"") ->  | G184: =IF($A184=G$1,$A185,"") ->  | H184: =IF($A184=H$1,$A185,"") ->  | I184: =IF($A184=I$1,$A185,"") ->  | J184: =IF($A184=J$1,$A185,"") ->  | K184: =IF($A184=K$1,$A185,"") -> Yellow | L184: =IF($A184=L$1,$A185,"") -> 
A185: Yellow | C185: =IF($A185=C$1,$A186,"") -> Purple | D185: =IF($A185=D$1,$A186,"") ->  | E185: =IF($A185=E$1,$A186,"") ->  | F185: =IF($A185=F$1,$A186,"") ->  | G185: =IF($A185=G$1,$A186,"") ->  | H185: =IF($A185=H$1,$A186,"") ->  | I185: =IF($A185=I$1,$A186,"") ->  | J185: =IF($A185=J$1,$A186,"") ->  | K185: =IF($A185=K$1,$A186,"") ->  | L185: =IF($A185=L$1,$A186,"") -> 
A186: Purple | C186: =IF($A186=C$1,$A187,"") ->  | D186: =IF($A186=D$1,$A187,"") ->  | E186: =IF($A186=E$1,$A187,"") ->  | F186: =IF($A186=F$1,$A187,"") ->  | G186: =IF($A186=G$1,$A187,"") ->  | H186: =IF($A186=H$1,$A187,"") ->  | I186: =IF($A186=I$1,$A187,"") ->  | J186: =IF($A186=J$1,$A187,"") ->  | K186: =IF($A186=K$1,$A187,"") -> Orange | L186: =IF($A186=L$1,$A187,"") -> 
A187: Orange | C187: =IF($A187=C$1,$A188,"") ->  | D187: =IF($A187=D$1,$A188,"") -> Blue | E187: =IF($A187=E$1,$A188,"") ->  | F187: =IF($A187=F$1,$A188,"") ->  | G187: =IF($A187=G$1,$A188,"") ->  | H187: =IF($A187=H$1,$A188,"") ->  | I187: =IF($A187=I$1,$A188,"") ->  | J187: =IF($A187=J$1,$A188,"") ->  | K187: =IF($A187=K$1,$A188,"") ->  | L187: =IF($A187=L$1,$A188,"") -> 
A188: Blue | C188: =IF($A188=C$1,$A189,"") ->  | D188: =IF($A188=D$1,$A189,"") ->  | E188: =IF($A188=E$1,$A189,"") -> Blue | F188: =IF($A188=F$1,$A189,"") ->  | G188: =IF($A188=G$1,$A189,"") ->  | H188: =IF($A188=H$1,$A189,"") ->  | I188: =IF($A188=I$1,$A189,"") ->  | J188: =IF($A188=J$1,$A189,"") ->  | K188: =IF($A188=K$1,$A189,"") ->  | L188: =IF($A188=L$1,$A189,"") -> 
A189: Blue | C189: =IF($A189=C$1,$A190,"") ->  | D189: =IF($A189=D$1,$A190,"") ->  | E189: =IF($A189=E$1,$A190,"") -> Black | F189: =IF($A189=F$1,$A190,"") ->  | G189: =IF($A189=G$1,$A190,"") ->  | H189: =IF($A189=H$1,$A190,"") ->  | I189: =IF($A189=I$1,$A190,"") ->  | J189: =IF($A189=J$1,$A190,"") ->  | K189: =IF($A189=K$1,$A190,"") ->  | L189: =IF($A189=L$1,$A190,"") -> 
A190: Black | C190: =IF($A190=C$1,$A191,"") ->  | D190: =IF($A190=D$1,$A191,"") ->  | E190: =IF($A190=E$1,$A191,"") ->  | F190: =IF($A190=F$1,$A191,"") ->  | G190: =IF($A190=G$1,$A191,"") ->  | H190: =IF($A190=H$1,$A191,"") ->  | I190: =IF($A190=I$1,$A191,"") -> Green | J190: =IF($A190=J$1,$A191,"") ->  | K190: =IF($A190=K$1,$A191,"") ->  | L190: =IF($A190=L$1,$A191,"") -> 
A191: Green | C191: =IF($A191=C$1,$A192,"") ->  | D191: =IF($A191=D$1,$A192,"") ->  | E191: =IF($A191=E$1,$A192,"") ->  | F191: =IF($A191=F$1,$A192,"") ->  | G191: =IF($A191=G$1,$A192,"") ->  | H191: =IF($A191=H$1,$A192,"") ->  | I191: =IF($A191=I$1,$A192,"") ->  | J191: =IF($A191=J$1,$A192,"") ->  | K191: =IF($A191=K$1,$A192,"") ->  | L191: =IF($A191=L$1,$A192,"") -> Blue
A192: Blue | C192: =IF($A192=C$1,$A193,"") ->  | D192: =IF($A192=D$1,$A193,"") ->  | E192: =IF($A192=E$1,$A193,"") -> Cyan | F192: =IF($A192=F$1,$A193,"") ->  | G192: =IF($A192=G$1,$A193,"") ->  | H192: =IF($A192=H$1,$A193,"") ->  | I192: =IF($A192=I$1,$A193,"") ->  | J192: =IF($A192=J$1,$A193,"") ->  | K192: =IF($A192=K$1,$A193,"") ->  | L192: =IF($A192=L$1,$A193,"") -> 
A193: Cyan | C193: =IF($A193=C$1,$A194,"") ->  | D193: =IF($A193=D$1,$A194,"") ->  | E193: =IF($A193=E$1,$A194,"") ->  | F193: =IF($A193=F$1,$A194,"") -> Blue | G193: =IF($A193=G$1,$A194,"") ->  | H193: =IF($A193=H$1,$A194,"") ->  | I193: =IF($A193=I$1,$A194,"") ->  | J193: =IF($A193=J$1,$A194,"") ->  | K193: =IF($A193=K$1,$A194,"") ->  | L193: =IF($A193=L$1,$A194,"") -> 
A194: Blue | C194: =IF($A194=C$1,$A195,"") ->  | D194: =IF($A194=D$1,$A195,"") ->  | E194: =IF($A194=E$1,$A195,"") -> Cyan | F194: =IF($A194=F$1,$A195,"") ->  | G194: =IF($A194=G$1,$A195,"") ->  | H194: =IF($A194=H$1,$A195,"") ->  | I194: =IF($A194=I$1,$A195,"") ->  | J194: =IF($A194=J$1,$A195,"") ->  | K194: =IF($A194=K$1,$A195,"") ->  | L194: =IF($A194=L$1,$A195,"") -> 
A195: Cyan | C195: =IF($A195=C$1,$A196,"") ->  | D195: =IF($A195=D$1,$A196,"") ->  | E195: =IF($A195=E$1,$A196,"") ->  | F195: =IF($A195=F$1,$A196,"") -> White | G195: =IF($A195=G$1,$A196,"") ->  | H195: =IF($A195=H$1,$A196,"") ->  | I195: =IF($A195=I$1,$A196,"") ->  | J195: =IF($A195=J$1,$A196,"") ->  | K195: =IF($A195=K$1,$A196,"") ->  | L195: =IF($A195=L$1,$A196,"") -> 
A196: White | C196: =IF($A196=C$1,$A197,"") ->  | D196: =IF($A196=D$1,$A197,"") ->  | E196: =IF($A196=E$1,$A197,"") ->  | F196: =IF($A196=F$1,$A197,"") ->  | G196: =IF($A196=G$1,$A197,"") -> Purple | H196: =IF($A196=H$1,$A197,"") ->  | I196: =IF($A196=I$1,$A197,"") ->  | J196: =IF($A196=J$1,$A197,"") ->  | K196: =IF($A196=K$1,$A197,"") ->  | L196: =IF($A196=L$1,$A197,"") -> 
A197: Purple | C197: =IF($A197=C$1,$A198,"") ->  | D197: =IF($A197=D$1,$A198,"") ->  | E197: =IF($A197=E$1,$A198,"") ->  | F197: =IF($A197=F$1,$A198,"") ->  | G197: =IF($A197=G$1,$A198,"") ->  | H197: =IF($A197=H$1,$A198,"") ->  | I197: =IF($A197=I$1,$A198,"") ->  | J197: =IF($A197=J$1,$A198,"") ->  | K197: =IF($A197=K$1,$A198,"") -> Purple | L197: =IF($A197=L$1,$A198,"") -> 
A198: Purple | C198: =IF($A198=C$1,$A199,"") ->  | D198: =IF($A198=D$1,$A199,"") ->  | E198: =IF($A198=E$1,$A199,"") ->  | F198: =IF($A198=F$1,$A199,"") ->  | G198: =IF($A198=G$1,$A199,"") ->  | H198: =IF($A198=H$1,$A199,"") ->  | I198: =IF($A198=I$1,$A199,"") ->  | J198: =IF($A198=J$1,$A199,"") ->  | K198: =IF($A198=K$1,$A199,"") -> Black | L198: =IF($A198=L$1,$A199,"") -> 
A199: Black | C199: =IF($A199=C$1,$A200,"") ->  | D199: =IF($A199=D$1,$A200,"") ->  | E199: =IF($A199=E$1,$A200,"") ->  | F199: =IF($A199=F$1,$A200,"") ->  | G199: =IF($A199=G$1,$A200,"") ->  | H199: =IF($A199=H$1,$A200,"") ->  | I199: =IF($A199=I$1,$A200,"") -> Green | J199: =IF($A199=J$1,$A200,"") ->  | K199: =IF($A199=K$1,$A200,"") ->  | L199: =IF($A199=L$1,$A200,"") -> 
A200: Green | C200: =IF($A200=C$1,$A201,"") ->  | D200: =IF($A200=D$1,$A201,"") ->  | E200: =IF($A200=E$1,$A201,"") ->  | F200: =IF($A200=F$1,$A201,"") ->  | G200: =IF($A200=G$1,$A201,"") ->  | H200: =IF($A200=H$1,$A201,"") ->  | I200: =IF($A200=I$1,$A201,"") ->  | J200: =IF($A200=J$1,$A201,"") ->  | K200: =IF($A200=K$1,$A201,"") ->  | L200: =IF($A200=L$1,$A201,"") -> Pink
... 502 more rows

Sheet BerekenenWitteCellen
A1: Yellow | B1: 11 | C1: 14 | D1: 11 | E1: 2 | F1: 14 | G1: 10 | H1: 6 | I1: 6 | J1: 33 | K1: 9 | L1: 3 | M1: 9 | N1: 10 | O1: 5 | P1: 10 | Q1: 12 | R1: 8 | S1: 1 | T1: 4 | U1: 5 | V1: 19 | W1: 2 | X1: 43 | Y1: 1 | Z1: 20 | AA1: 2 | AB1: 33 | AC1: 2 | AD1: 20 | AE1: 3 | AF1: 6 | AG1: 9 | AH1: 12 | AI1: 11 | AJ1: 37 | AK1: 8 | AL1: 1 | AM1: 35 | AN1: 12 | AO1: 31 | AP1: 6 | AQ1: 6 | AR1: 4 | AS1: 12 | AT1: 7 | AU1: 1 | AV1: 4 | AW1: 22 | AX1: 6 | AY1: 26 | AZ1: 9 | BA1: 8 | BB1: 20 | BC1: 31 | BD1: 22 | BE1: 27
A2: Orange | B2: 1 | C2: 1 | D2: 15 | E2: 4 | F2: 5 | G2: 1 | H2: 1 | I2: 3 | J2: 18 | K2: 11 | L2: 9 | M2: 17 | N2: 4 | O2: 5 | P2: 24 | Q2: 5 | R2: 11 | S2: 3 | T2: 16 | U2: 1 | V2: 7 | W2: 1 | X2: 12 | Y2: 9 | Z2: 25 | AA2: 4 | AB2: 7 | AC2: 8 | AD2: 12 | AE2: 1 | AF2: 38 | AG2: 10 | AH2: 16 | AI2: 30 | AJ2: 8 | AK2: 12 | AL2: 8 | AM2: 29 | AN2: 1 | AO2: 12 | AP2: 1 | AQ2: 13 | AR2: 3 | AS2: 4 | AT2: 3 | AU2: 37 | AV2: 7 | AW2: 5 | AX2: 10 | AY2: 6 | AZ2: 20 | BA2: 9 | BB2: 5 | BC2: 8 | BD2: 1 | BE2: 3 | BF2: 8 | BG2: 36 | BH2: 22 | BI2: 7 | BJ2: 4 | BK2: 2 | BL2: 8 | BM2: 30 | BN2: 23 | BO2: 4 | BP2: 5 | BQ2: 7 | BR2: 4
A3: Blue | B3: 5 | C3: 17 | D3: 14 | E3: 27 | F3: 12 | G3: 23 | H3: 9 | I3: 1 | J3: 11 | K3: 23 | L3: 2 | M3: 3 | N3: 19 | O3: 16 | P3: 1 | Q3: 3 | R3: 2 | S3: 8 | T3: 24 | U3: 4 | V3: 3 | W3: 21 | X3: 3 | Y3: 4 | Z3: 16 | AA3: 2 | AB3: 4 | AC3: 14 | AD3: 15 | AE3: 5 | AF3: 52 | AG3: 2 | AH3: 2 | AI3: 2 | AJ3: 23 | AK3: 26 | AL3: 36 | AM3: 3 | AN3: 10 | AO3: 2 | AP3: 13 | AQ3: 1 | AR3: 5 | AS3: 7 | AT3: 9 | AU3: 9 | AV3: 4 | AW3: 6 | AX3: 6 | AY3: 2 | AZ3: 18 | BA3: 10 | BB3: 4 | BC3: 4 | BD3: 1 | BE3: 2 | BF3: 9 | BG3: 25 | BH3: 8 | BI3: 7 | BJ3: 15 | BK3: 2 | BL3: 5 | BM3: 11 | BN3: 5 | BO3: 2 | BP3: 1 | BQ3: 9 | BR3: 3 | BS3: 1 | BT3: 1 | BU3: 8 | BV3: 2 | BW3: 13
A4: Cyan | B4: 19 | C4: 11 | D4: 19 | E4: 1 | F4: 4 | G4: 6 | H4: 6 | I4: 9 | J4: 5 | K4: 2 | L4: 3 | M4: 1 | N4: 4 | O4: 8 | P4: 2 | Q4: 29 | R4: 22 | S4: 2 | T4: 1 | U4: 6 | V4: 16 | W4: 2 | X4: 25 | Y4: 7 | Z4: 1 | AA4: 4 | AB4: 16 | AC4: 16 | AD4: 9 | AE4: 3 | AF4: 10 | AG4: 2 | AH4: 12 | AI4: 4 | AJ4: 10 | AK4: 1 | AL4: 9 | AM4: 11 | AN4: 8 | AO4: 4 | AP4: 23 | AQ4: 2 | AR4: 11 | AS4: 17 | AT4: 4 | AU4: 3 | AV4: 32 | AW4: 1 | AX4: 7 | AY4: 3 | AZ4: 4 | BA4: 1 | BB4: 16 | BC4: 11 | BD4: 5 | BE4: 9 | BF4: 13 | BG4: 21 | BH4: 16 | BI4: 18 | BJ4: 17 | BK4: 10 | BL4: 9 | BM4: 27 | BN4: 1 | BO4: 3 | BP4: 17 | BQ4: 5 | BR4: 29 | BS4: 7 | BT4: 5 | BU4: 4 | BV4: 5
A5: White | B5: 5 | C5: 3 | D5: 4 | E5: 4 | F5: 6 | G5: 27 | H5: 19 | I5: 22 | J5: 35 | K5: 12 | L5: 13 | M5: 36 | N5: 14 | O5: 5 | P5: 4 | Q5: 20 | R5: 6 | S5: 1 | T5: 10 | U5: 2 | V5: 16 | W5: 6 | X5: 5 | Y5: 6 | Z5: 41 | AA5: 19 | AB5: 16 | AC5: 15 | AD5: 2 | AE5: 8 | AF5: 36 | AG5: 9 | AH5: 9 | AI5: 6 | AJ5: 15 | AK5: 26 | AL5: 19 | AM5: 1 | AN5: 3 | AO5: 29 | AP5: 17 | AQ5: 4 | AR5: 2 | AS5: 9 | AT5: 13 | AU5: 11 | AV5: 1 | AW5: 12 | AX5: 3 | AY5: 29 | AZ5: 3 | BA5: 10 | BB5: 3 | BC5: 12 | BD5: 7 | BE5: 16 | BF5: 6
A6: Red | B6: 1 | C6: 1 | D6: 12 | E6: 14 | F6: 15 | G6: 5 | H6: 13 | I6: 7 | J6: 7 | K6: 2 | L6: 10 | M6: 2 | N6: 5 | O6: 5 | P6: 5 | Q6: 18 | R6: 44 | S6: 6 | T6: 2 | U6: 22 | V6: 5 | W6: 52 | X6: 2 | Y6: 3 | Z6: 4 | AA6: 30 | AB6: 4 | AC6: 7 | AD6: 1 | AE6: 17 | AF6: 12 | AG6: 15 | AH6: 6 | AI6: 2 | AJ6: 1 | AK6: 22 | AL6: 3 | AM6: 2 | AN6: 6 | AO6: 6 | AP6: 7 | AQ6: 9 | AR6: 7 | AS6: 5 | AT6: 11 | AU6: 1 | AV6: 1 | AW6: 13 | AX6: 2 | AY6: 6 | AZ6: 5 | BA6: 8 | BB6: 2 | BC6: 5 | BD6: 1 | BE6: 4 | BF6: 10 | BG6: 7 | BH6: 7 | BI6: 10 | BJ6: 12 | BK6: 6 | BL6: 6 | BM6: 1 | BN6: 8 | BO6: 27 | BP6: 4 | BQ6: 11 | BR6: 12 | BS6: 1 | BT6: 22 | BU6: 7 | BV6: 2 | BW6: 24 | BX6: 1 | BY6: 28 | BZ6: 4 | CA6: 3
A7: Black | B7: 9 | C7: 14 | D7: 2 | E7: 17 | F7: 6 | G7: 11 | H7: 32 | I7: 14 | J7: 7 | K7: 23 | L7: 5 | M7: 2 | N7: 5 | O7: 29 | P7: 9 | Q7: 6 | R7: 8 | S7: 5 | T7: 11 | U7: 9 | V7: 2 | W7: 7 | X7: 6 | Y7: 2 | Z7: 8 | AA7: 5 | AB7: 3 | AC7: 13 | AD7: 9 | AE7: 3 | AF7: 22 | AG7: 2 | AH7: 2 | AI7: 15 | AJ7: 5 | AK7: 6 | AL7: 2 | AM7: 4 | AN7: 2 | AO7: 24 | AP7: 1 | AQ7: 4 | AR7: 9 | AS7: 22 | AT7: 1 | AU7: 1 | AV7: 5 | AW7: 11 | AX7: 11 | AY7: 3 | AZ7: 3 | BA7: 5 | BB7: 2 | BC7: 8 | BD7: 2 | BE7: 9 | BF7: 7 | BG7: 22 | BH7: 9 | BI7: 6 | BJ7: 4 | BK7: 8 | BL7: 1 | BM7: 7 | BN7: 22 | BO7: 7 | BP7: 8 | BQ7: 11 | BR7: 16 | BS7: 3 | BT7: 7 | BU7: 23 | BV7: 12 | BW7: 1 | BX7: 5 | BY7: 15 | BZ7: 20 | CA7: 4 | CB7: 8
A8: Pink | B8: 8 | C8: 8 | D8: 3 | E8: 1 | F8: 4 | G8: 2 | H8: 7 | I8: 21 | J8: 9 | K8: 2 | L8: 20 | M8: 2 | N8: 11 | O8: 5 | P8: 3 | Q8: 13 | R8: 7 | S8: 13 | T8: 37 | U8: 16 | V8: 5 | W8: 12 | X8: 8 | Y8: 36 | Z8: 12 | AA8: 5 | AB8: 7 | AC8: 4 | AD8: 19 | AE8: 6 | AF8: 2 | AG8: 6 | AH8: 2 | AI8: 8 | AJ8: 3 | AK8: 13 | AL8: 9 | AM8: 2 | AN8: 17 | AO8: 13 | AP8: 5 | AQ8: 24 | AR8: 1 | AS8: 43 | AT8: 20 | AU8: 3 | AV8: 3 | AW8: 42 | AX8: 14 | AY8: 6 | AZ8: 5 | BA8: 7 | BB8: 3 | BC8: 12 | BD8: 2 | BE8: 1 | BF8: 9 | BG8: 15 | BH8: 11 | BI8: 1 | BJ8: 3 | BK8: 8 | BL8: 8 | BM8: 25 | BN8: 7 | BO8: 9 | BP8: 8 | BQ8: 2
A9: Purple | B9: 3 | C9: 24 | D9: 5 | E9: 9 | F9: 3 | G9: 1 | H9: 4 | I9: 15 | J9: 6 | K9: 1 | L9: 4 | M9: 17 | N9: 12 | O9: 13 | P9: 1 | Q9: 2 | R9: 1 | S9: 5 | T9: 1 | U9: 9 | V9: 17 | W9: 5 | X9: 10 | Y9: 2 | Z9: 11 | AA9: 1 | AB9: 16 | AC9: 7 | AD9: 3 | AE9: 17 | AF9: 10 | AG9: 1 | AH9: 15 | AI9: 22 | AJ9: 20 | AK9: 4 | AL9: 3 | AM9: 10 | AN9: 8 | AO9: 19 | AP9: 9 | AQ9: 15 | AR9: 1 | AS9: 10 | AT9: 27 | AU9: 6 | AV9: 6 | AW9: 3 | AX9: 8 | AY9: 3 | AZ9: 21 | BA9: 10 | BB9: 31 | BC9: 8 | BD9: 11 | BE9: 16 | BF9: 6 | BG9: 12 | BH9: 2 | BI9: 1 | BJ9: 12 | BK9: 9 | BL9: 3 | BM9: 15 | BN9: 6 | BO9: 9 | BP9: 6 | BQ9: 16 | BR9: 4 | BS9: 16 | BT9: 6 | BU9: 8 | BV9: 16 | BW9: 18
A10: Green | B10: 34 | C10: 7 | D10: 21 | E10: 11 | F10: 10 | G10: 21 | H10: 8 | I10: 8 | J10: 7 | K10: 20 | L10: 3 | M10: 1 | N10: 19 | O10: 1 | P10: 8 | Q10: 9 | R10: 7 | S10: 2 | T10: 2 | U10: 14 | V10: 10 | W10: 1 | X10: 1 | Y10: 22 | Z10: 7 | AA10: 9 | AB10: 6 | AC10: 6 | AD10: 7 | AE10: 4 | AF10: 3 | AG10: 18 | AH10: 4 | AI10: 6 | AJ10: 15 | AK10: 16 | AL10: 19 | AM10: 8 | AN10: 3 | AO10: 9 | AP10: 2 | AQ10: 1 | AR10: 10 | AS10: 8 | AT10: 13 | AU10: 20 | AV10: 11 | AW10: 10 | AX10: 9 | AY10: 12 | AZ10: 23 | BA10: 32 | BB10: 2 | BC10: 1 | BD10: 22 | BE10: 17 | BF10: 1 | BG10: 14 | BH10: 17 | BI10: 2 | BJ10: 3 | BK10: 16 | BL10: 19 | BM10: 6 | BN10: 2 | BO10: 1 | BP10: 13 | BQ10: 16 | BR10: 1
B13: Mow many? | C13: Stdev | E13: Grootste | F13: 1 | G13: 2 | H13: 3 | I13: 4 | J13: 5 | K13: 6 | L13: 7 | M13: 8 | N13: 9 | O13: 10
A14: Yellow | B14: 27 | C14: =_xlfn.STDEV.P(B1:AXH1) -> 10.56441309 | F14: =LARGE($B1:$AXH1,F$13) -> 43 | G14: =LARGE($B1:$AXH1,G$13) -> 37 | H14: 35 | I14: 33 | J14: 33 | K14: 31 | L14: 31 | M14: 27 | N14: 26 | O14: 22
A15: Orange | B15: 4 | C15: =_xlfn.STDEV.P(B2:AXH2) -> 9.347208158 | F15: =LARGE($B2:$AXH2,F$13) -> 38 | G15: 37 | H15: 36 | I15: 30 | J15: 30 | K15: 29 | L15: 25 | M15: 24 | N15: 23 | O15: 22
A16: Blue | B16: 13 | C16: 9.312889581 | F16: =LARGE($B3:$AXH3,F$13) -> 52 | G16: 36 | H16: 27 | I16: 26 | J16: 25 | K16: 24 | L16: 23 | M16: 23 | N16: 23 | O16: 21
A17: Cyan | B17: 5 | C17: 7.82993855 | F17: =LARGE($B4:$AXH4,F$13) -> 32 | G17: 29 | H17: 29 | I17: 27 | J17: 25 | K17: 23 | L17: 22 | M17: 21 | N17: 19 | O17: 19
A18: White | B18: 6 | C18: 9.992610381 | F18: =LARGE($B5:$AXH5,F$13) -> 41 | G18: 36 | H18: 36 | I18: 35 | J18: 29 | K18: 29 | L18: 27 | M18: 26 | N18: 22 | O18: 20
A19: Red | B19: 3 | C19: 9.331184593 | F19: =LARGE($B6:$AXH6,F$13) -> 52 | G19: 44 | H19: 30 | I19: 28 | J19: 27 | K19: 24 | L19: 22 | M19: 22 | N19: 22 | O19: 18
A20: Black | B20: 8 | C20: 7.035059956 | F20: =LARGE($B7:$AXH7,F$13) -> 32 | G20: 29 | H20: 24 | I20: 23 | J20: 23 | K20: 22 | L20: 22 | M20: 22 | N20: 22 | O20: 20
A21: Pink | B21: 2 | C21: 9.407397884 | F21: =LARGE($B8:$AXH8,F$13) -> 43 | G21: 42 | H21: 37 | I21: 36 | J21: 25 | K21: 24 | L21: 21 | M21: 20 | N21: 20 | O21: 19
A22: Purple | B22: 18 | C22: 6.850764941 | F22: =LARGE($B9:$AXH9,F$13) -> 31 | G22: 27 | H22: 24 | I22: 22 | J22: 21 | K22: 20 | L22: 19 | M22: 18 | N22: 17 | O22: 17
A23: Green | B23: 1 | C23: =_xlfn.STDEV.P(B10:AXH10) -> 7.67735755 | F23: =LARGE($B10:$AXH10,F$13) -> 34 | G23: 32 | H23: 23 | I23: 22 | J23: 22 | K23: 21 | L23: 21 | M23: 20 | N23: 20 | O23: 19
